Workbook

Sheet Disclaimer

Sheet Instructions
A1: Power Budget Instructions

Sheet Normal Config
A1: Normal Mode Thermal Config Matrix | N1: =Summary!D15 ->  | O1: <-- Margin to PS rating
A3: Thermal Config Matrix Normal operating mode "●"= Full Support without limitation; "4,5"(Cell with number)=Conditional support with limitation (See notes below table); " "(Blank)=Not support; | D3: R1304 HDD WF | H3: R1208 HDD WF | L3: R1208 NVME WF
A4: ASHRAE (See note 1) | C4: Classifications | D4: 27C | E4: A2 | F4: A3 | G4: A4 | H4: 27C | I4: A2 | J4: A3 | K4: A4 | L4: 27C | M4: A2 | N4: A3 | O4: A4
C5: Max Ambient | D5: 27°C(1) | E5: 35°C | F5: 40°C | G5: 45°C | H5: 27°C(1) | I5: 35°C | J5: 40°C | K5: 45°C | L5: 27°C(1) | M5: 35°C | N5: 40°C | O5: 45°C
C6: Altitude | D6: 900 | E6: 900 | F6: 900 | G6: 900 | H6: 900 | I6: 900 | J6: 900 | K6: 900 | L6: 900 | M6: 900 | N6: 900 | O6: 900
A7: PS (See note 6) | C7: 1300 W AC | D7: ● | E7: 17 | F7: 19 | G7: 20 | H7: ● | I7: 18 | J7: 19 | K7: 20 | L7: ● | M7: ● | N7: ● | O7: ●
C8: 1100W AC | D8: ● | E8: ● | F8: ● | G8: ● | H8: ● | I8: ● | J8: ● | K8: ● | L8: ● | M8: ● | N8: ● | O8: ●
C9: 750W AC | D9: 17, 24 | E9: 19, 24 | F9: 20, 25 | G9: 21 | H9: 17, 24 | I9: 19, 24 | J9: 20 | K9: 21
A10: CPU TDP | B10: 173 W | C10: Intel Xeon Platinum 8176F _28C | D10: ● | H10: ● | L10: 3
B11: 165 W | C11: Intel® Xeon® Platinum 8276 CPU_28C | D11: ● | E11: 3 | H11: ● | I11: 3 | L11: ●
C12: Intel® Xeon® Platinum 8260 CPU_24C | D12: ● | E12: 3 | H12: ● | I12: 3 | L12: 3
C13: Intel Xeon Platinum 8176 _28C | D13: ● | E13: 3 | H13: 3 | I13: 3 | L13: 3
C14: Intel Xeon Platinum 8170_26C | D14: ● | E14: 3 | H14: 3 | I14: 3 | L14: 3
C15: Intel Xeon Gold 6150_18C | D15: ● | E15: ● | H15: ● | I15: 3 | L15: 3
C16: Intel Xeon Gold 6146_12C | D16: 3 | E16: 3 | H16: 3 | I16: 3 | L16: 3
C17: Intel Xeon Platinum 8170F_26C | D17: ● | E17: ● | H17: ● | I17: ● | L17: ●
B18: 160 W | C18: Intel Xeon Platinum 8160F_24C | D18: ● | E18: ● | H18: ● | I18: ● | L18: ●
C19: Intel Xeon Gold 6148F_20C | D19: ● | E19: ● | H19: ● | I19: ● | L19: ●
C20: Intel Xeon Gold 6142F_16C | D20: ● | E20: ● | H20: ● | I20: ● | L20: ●
B21: 150 W | C21: Intel® Xeon® Gold 6252 CPU_24C | D21: ● | E21: 3 | H21: 3 | I21: ● | L21: ●
C22: Intel® Xeon® Gold 6248 CPU_20C | D22: ● | E22: 3 | H22: 3 | I22: ● | L22: ●
C23: Intel® Xeon® Gold 6240 CPU_18C | D23: ● | E23: 3 | H23: 3 | I23: ● | L23: ●
C24: Intel® Xeon® Gold 6242 CPU_16C | D24: ● | E24: 3 | H24: 3 | I24: 3 | L24: ●
C25: Intel® Xeon® Gold 6244 CPU_8C | I25: 3
C26: Intel Xeon Platinum 8164_26C | D26: ● | E26: 3 | F26: 3 | H26: ● | I26: 3 | L26: ●
C27: Intel Xeon Platinum 8160_24C | D27: ● | E27: 3 | F27: 3 | H27: ● | I27: 3 | L27: ●
C28: Intel Xeon Gold 6148_20C | D28: ● | E28: 3 | F28: 3 | H28: ● | I28: 3 | L28: ●
C29: Intel Xeon Gold 6136_12C | D29: ● | E29: ● | F29: ● | H29: ● | I29: ● | L29: ●
C30: Intel Xeon Gold 6144_8C | D30: 3 | E30: 3 | F30: 3 | H30: 3 | I30: 3 | L30: 3
C31: Intel Xeon Platinum 8158_12C | D31: ● | E31: ● | F31: ● | H31: ● | I31: ● | L31: ●
C32: Intel Xeon Gold 6142_16C | D32: ● | E32: 3 | F32: 3 | H32: ● | I32: 3 | L32: ●
B33: 140 W | C33: Intel Xeon Gold 6132_14C | D33: ● | E33: ● | F33: ● | H33: ● | I33: ● | J33: ● | L33: ● | M33: ●
C34: Intel Xeon Gold 6152_22C | D34: ● | E34: ● | F34: ● | H34: ● | I34: 3 | J34: ● | L34: ● | M34: ●
C35: Intel Xeon Gold 6140_18C | D35: ● | E35: ● | F35: ● | H35: ● | I35: ● | J35: ● | L35: ● | M35: ●
B36: 135 W | C36: Intel Xeon Gold 6138F_20C | D36: ● | E36: ● | F36: ● | H36: ● | I36: ● | J36: ● | L36: ● | M36: ●
C37: Intel Xeon Gold 6130F_16C | D37: ● | E37: ● | F37: ● | H37: ● | I37: ● | J37: ● | L37: ● | M37: ●
C38: Intel Xeon Gold 6126F_12C | D38: ● | E38: ● | F38: ● | H38: ● | I38: ● | J38: ● | L38: ● | M38: ●
B39: 130 W | C39: Intel Xeon Gold 6134_8C | D39: ● | E39: ● | F39: ● | H39: ● | I39: ● | J39: ● | L39: ● | M39: ●
B40: 125 W | C40: Intel® Xeon® Gold 6230 CPU_20C | D40: ● | E40: ● | F40: ● | H40: ● | I40: ● | J40: ● | K40: 3 | L40: ● | M40: ●
C41: Intel® Xeon® Gold 5220 CPU _18C | D41: ● | E41: ● | F41: ● | H41: ● | I41: ● | J41: ● | K41: 3 | L41: ● | M41: ●
C42: Intel® Xeon® Gold 5218 CPU_16C | D42: ● | E42: ● | F42: ● | H42: ● | I42: ● | J42: ● | K42: 3 | L42: ● | M42: ●
C43: Intel® Xeon® Platinum 8253 CPU_16C | D43: ● | E43: ● | F43: ● | H43: ● | I43: ● | J43: ● | K43: 3 | L43: ● | M43: ●
C44: Intel Xeon Gold 6138_20C | D44: ● | E44: ● | F44: ● | G44: 3 | H44: ● | I44: ● | J44: ● | K44: ● | L44: ● | M44: ● | N44: 3
C45: Intel Xeon Gold 6130_16C | D45: ● | E45: ● | F45: ● | G45: 3 | H45: ● | I45: ● | J45: ● | K45: ● | L45: ● | M45: ● | N45: 3
C46: Intel Xeon Platinum 8153_16C | D46: ● | E46: ● | F46: ● | G46: 3 | H46: ● | I46: ● | J46: ● | K46: ● | L46: ● | M46: ● | N46: 3
C47: Intel Xeon Gold 6126_12C | D47: ● | E47: ● | F47: ● | G47: ● | H47: ● | I47: ● | J47: ● | K47: ● | L47: ● | M47: ● | N47: ●
B48: 115 W | C48: Intel Xeon Gold 6128_6C | D48: ● | E48: ● | F48: ● | G48: ● | H48: ● | I48: ● | J48: ● | K48: ● | L48: ● | M48: ● | N48: ●
B49: 113 W | C49: Intel Xeon Gold 5117F_14C | D49: ● | E49: ● | F49: ● | G49: ● | H49: ● | I49: ● | J49: ● | L49: ● | M49: ● | N49: ●
B50: 105 W | C50: Intel Xeon Gold 5122_4C | D50: ● | E50: ● | F50: ● | G50: ● | H50: ● | I50: ● | J50: ● | K50: ● | L50: ● | M50: ● | N50: ● | O50: ●
C51: Intel Xeon Platinum 8156_4C | D51: ● | E51: ● | F51: ● | G51: ● | H51: ● | I51: ● | J51: ● | K51: ● | L51: ● | M51: ● | N51: ● | O51: ●
C52: Intel Xeon Gold 5120_14C | D52: ● | E52: ● | F52: ● | G52: ● | H52: ● | I52: ● | J52: ● | K52: ● | L52: ● | M52: ● | N52: ● | O52: 3
C53: Intel Xeon Gold 5118_12C | D53: ● | E53: ● | F53: ● | G53: ● | H53: ● | I53: ● | J53: ● | K53: ● | L53: ● | M53: ● | N53: ● | O53: 3
B54: 85 W | C54: Intel® Xeon® Gold 5215 CPU_10C | D54: ● | E54: ● | F54: ● | G54: 3 | H54: ● | I54: ● | J54: ● | K54: 3 | L54: ● | M54: ● | N54: ●
C55: Intel Xeon Gold 5115_10C | D55: ● | E55: ● | F55: ● | G55: ● | H55: ● | I55: ● | J55: ● | K55: ● | L55: ● | M55: ● | N55: ● | O55: ●
C56: Intel Xeon Silver 4116_12C | D56: ● | E56: ● | F56: ● | G56: ● | H56: ● | I56: ● | J56: ● | K56: ● | L56: ● | M56: ● | N56: ● | O56: ●
C57: Intel Xeon Silver 4114_10C | D57: ● | E57: ● | F57: ● | G57: ● | H57: ● | I57: ● | J57: ● | K57: ● | L57: ● | M57: ● | N57: ● | O57: ●
C58: Intel Xeon Silver 4110_8C | D58: ● | E58: ● | F58: ● | G58: ● | H58: ● | I58: ● | J58: ● | K58: ● | L58: ● | M58: ● | N58: ● | O58: ●
C59: Intel Xeon Silver 4108 _8C | D59: ● | E59: ● | F59: ● | G59: ● | H59: ● | I59: ● | J59: ● | K59: ● | L59: ● | M59: ● | N59: ● | O59: ●
C60: Intel Xeon Bronze 3106 _8C | D60: ● | E60: ● | F60: ● | G60: ● | H60: ● | I60: ● | J60: ● | K60: ● | L60: ● | M60: ● | N60: ● | O60: ●
C61: Intel Xeon Bronze 3104_6C | D61: ● | E61: ● | F61: ● | G61: ● | H61: ● | I61: ● | J61: ● | K61: ● | L61: ● | M61: ● | N61: ● | O61: ●
C62: Intel Xeon Silver 4112_4C | D62: ● | E62: ● | F62: ● | G62: ● | H62: ● | I62: ● | J62: ● | K62: ● | L62: ● | M62: ● | N62: ● | O62: ●
A65: Memory Type ( See note 16) | C65: AEP SDP 128 GB | D65: ● | E65: ● | F65: 3 | G65: 3 | H65: ● | I65: ● | J65: ● | K65: ● | L65: ● | M65: ● | N65: ● | O65: ●
C66: AEP DDQ 256 GB | D66: ● | E66: ● | F66: 3 | G66: 3 | H66: ● | I66: ● | J66: ● | K66: ● | L66: ● | M66: ● | N66: ● | O66: 3
C67: AEP QDP 512 GB | D67: ● | E67: 27 | F67: 3 | G67: 3 | H67: ● | I67: ● | J67: ● | K67: 3 | L67: ● | M67: ● | N67: ● | O67: 3
C68: RDIMM-2Rx8,1Rx4, 1Rx8 | D68: ● | E68: ● | F68: ● | G68: ● | H68: ● | I68: ● | J68: ● | K68: ● | L68: ● | M68: ● | N68: ● | O68: ●
C69: RDIMM-DRx4 | D69: ● | E69: ● | F69: ● | G69: ● | H69: ● | I69: ● | J69: ● | K69: ● | L69: ● | M69: ● | N69: ● | O69: ●
C70: LRDIMM-QRx4 DDP | D70: ● | E70: ● | F70: 3 | G70: 3 | H70: ● | I70: ● | J70: 3 | K70: 3 | L70: ● | M70: ● | N70: 3 | O70: 3
A71: Add-in Cards (See note 5) | C71: Riser #1 - Bottom Slot (1U riser and 2U riser) | D71: ● | E71: ● | F71: ● | G71: ● | H71: ● | I71: ● | J71: ● | K71: ● | L71: ● | M71: ● | N71: ● | O71: ●
C72: Riser #2 - Bottom Slot (1U riser and 2U riser) | D72: ● | E72: ● | F72: ● | G72: ● | H72: ● | I72: ● | J72: ● | K72: ● | L72: ● | M72: ● | N72: ● | O72: ●
A73: SAS and OCP Modules (See Note 4) | C73: Intel® Integrated RAID Modules (Mezzanine cards) | D73: ● | E73: ● | F73: ● | G73: ● | H73: ● | I73: ● | J73: ● | K73: ● | L73: ● | M73: ● | N73: ● | O73: ●
C74: 16 port tri mode mezzanine | D74: ● | E74: ● | F74: 26 | G74: 26 | H74: ● | I74: ● | J74: 26 | K74: 26 | L74: ● | M74: ● | N74: 26 | O74: 26
C75: IFT carrier AIC | D75: ● | E75: ● | F75: ● | G75: ● | H75: ● | I75: ● | J75: ● | K75: ● | L75: ● | M75: ● | N75: ● | O75: ●
C76: IFT carrier Mezzanine | D76: ● | E76: ● | F76: ● | G76: ● | H76: ● | I76: ● | J76: ● | K76: ● | L76: ● | M76: ● | N76: ● | O76: ●
C77: Dual 10GBase-T Taylor Canal | D77: ● | E77: ● | F77: ● | G77: ● | H77: ● | I77: ● | J77: ● | K77: ● | L77: ● | M77: ● | N77: ● | O77: ●
C78: Dual SFP+ Cascade Canal | D78: ● | E78: ● | F78: ● | G78: ● | H78: ● | I78: ● | J78: ● | K78: ● | L78: ● | M78: ● | N78: ● | O78: ●
C79: Quad SFP+ Cascade Canal | D79: ● | E79: ● | F79: ● | G79: ● | H79: ● | I79: ● | J79: ● | K79: ● | L79: ● | M79: ● | N79: ● | O79: ●
C80: 1GBase-T Quad Main Canal | D80: ● | E80: ● | F80: ● | G80: ● | H80: ● | I80: ● | J80: ● | K80: ● | L80: ● | M80: ● | N80: ● | O80: ●
A81: Battery Backup (See note 9) | C81: BBU (rated to 45C) | D81: ● | E81: ● | F81: ● | H81: ● | I81: ● | J81: ● | L81: ● | M81: ● | N81: ●
C82: Supercap (rated to 55C) | D82: ● | E82: ● | F82: ● | H82: ● | I82: ● | J82: ● | L82: ● | M82: ● | N82: ●
C83: Cache Offload Module (rated to 55C) | D83: ● | E83: ● | F83: ● | G83: ● | H83: ● | I83: ● | J83: ● | K83: ● | L83: ● | M83: ● | N83: ● | O83: ●
A84: 2.5" SFF NVMe SSD (DC P3700/P3500) ( See note 22) | C84: 1600GB/2TB | L84: ● | M84: ● | N84: ● | O84: ●
C85: 800GB | L85: ● | M85: ● | N85: ● | O85: ●
C86: 600GB | L86: ● | M86: ● | N86: ● | O86: ●
C87: 400GB | L87: ● | M87: ● | N87: ● | O87: ●
C88: 200GB | L88: ● | M88: ● | N88: ● | O88: ●
A89: SATA HDD | C89: Up to 2 TB | D89: ● | E89: ● | F89: ● | G89: ● | H89: ● | I89: ● | J89: ● | K89: ● | L89: ● | M89: ● | N89: ● | O89: ●
A90: PCIe SSD AIC FF (DC P3700/P3500) (See note 8) | C90: 1600GB/2TB | D90: ● | E90: ● | F90: ● | G90: ● | H90: ● | I90: ● | J90: ● | K90: ● | L90: ● | M90: ● | N90: ● | O90: ●
C91: 800GB | D91: ● | E91: ● | F91: ● | G91: ● | H91: ● | I91: ● | J91: ● | K91: ● | L91: ● | M91: ● | N91: ● | O91: ●
C92: 600GB | D92: ● | E92: ● | F92: ● | G92: ● | H92: ● | I92: ● | J92: ● | K92: ● | L92: ● | M92: ● | N92: ● | O92: ●
C93: 400GB | D93: ● | E93: ● | F93: ● | G93: ● | H93: ● | I93: ● | J93: ● | K93: ● | L93: ● | M93: ● | N93: ● | O93: ●
C94: 200GB | D94: ● | E94: ● | F94: ● | G94: ● | H94: ● | I94: ● | J94: ● | K94: ● | L94: ● | M94: ● | N94: ● | O94: ●
A95: M.2 Sustainted Max Power (TDP) | C95: Intel 120G and 80G SATA | D95: ● | E95: ● | F95: 13 | G95: 13 | H95: ● | I95: ● | J95: 13 | K95: 13 | L95: ● | M95: ● | N95: 13 | O95: 13
C96: non-Intel M.2 | D96: ● | E96: ● | F96: 15 | G96: 15 | H96: ● | I96: ● | J96: 15 | K96: 15 | L96: ● | M96: ● | N96: 15 | O96: 15
A97: M.2 Light Workload [ See note 14] | C97: Intel 120G and 80G SATA | D97: ● | E97: ● | F97: ● | G97: 13 | H97: ● | I97: ● | J97: ● | K97: 13 | L97: ● | M97: ● | N97: ● | O97: 13
C98: non-Intel M.2 | D98: ● | E98: ● | F98: ● | G98: 15 | H98: ● | I98: ● | J98: ● | K98: 15 | L98: ● | M98: ● | N98: ● | O98: 15
A99: Lewisburg | D99: ● | E99: ● | F99: ● | G99: ● | H99: ● | I99: ● | J99: ● | K99: ● | L99: ● | M99: ● | N99: ● | O99: ●
D100: ● | E100: ● | F100: ● | G100: ● | H100: ● | I100: ● | J100: ● | K100: ● | L100: ● | M100: ● | N100: ● | O100: ●
D101: ● | E101: ● | F101: ● | G101: 11 | H101: ● | I101: ● | J101: ● | K101: 11 | L101: ● | M101: ● | N101: 11 | O101: 11
D102: ● | E102: ● | F102: ● | G102: 11 | H102: ● | I102: ● | J102: ● | K102: 11 | L102: ● | M102: ● | N102: ● | O102: 11
C103: LBG L (20W) | D103: ● | E103: ● | F103: 11 | G103: 11 | H103: ● | I103: ● | J103: 11 | K103: 11 | L103: ● | M103: ● | N103: 11 | O103: 11
C104: LBG E (21W) | D104: ● | E104: 11 | F104: 11 | G104: 11 | H104: ● | I104: 11 | J104: 11 | K104: 11 | L104: ● | M104: 11 | N104: 11 | O104: 11
C105: LBG M (25W) | D105: 11 | E105: 11 | F105: 11 | G105: 11 | H105: 11 | I105: 11 | J105: 11 | K105: 11 | L105: 11 | M105: 11 | N105: 11 | O105: 11
C106: LBG M (29W) | L106: ● | M106: ● | N106: ● | O106: ●
A107: Copperville | D107: ● | E107: ● | F107: ● | G107: ● | H107: ● | I107: ● | J107: ● | K107: ● | L107: ● | M107: ● | N107: ● | O107: ●
C108: 9W
A130: Thermal Config Matrix Normal operating mode "●"= Full Support without limitation; "4,5"(Cell with number)=Conditional support with limitation (See notes below table); " "(Blank)=Not support; | D130: Base System SKUs: R2312 WF STANDARD AIRDUCT | H130: Base System SKUs: R2224 WF SATA / NVME 200 GB - 600 GB STANDARD AIRDUCT | L130: Base System SKUs: R2224 WF NVME 800 GB - 2.0 TB STANDARD AIRDUCT | P130: Base System SKUs R2308 WF R2216 WF STANDARD AIRDUCT | T130: Base System SKUs: R2208 WF STANDARD AIRDUCT | X130: Xeon PHI Computing Optimized: R2308 WF R2216 WF AWFCOPRODUCT AIRDUCT | AB130: Xeon PHI Computing Optimized: R2208WF AWFCOPRODUCT AIRDUCT
A131: ASHRAE (See note 1) | C131: Classifications | D131: 27C | E131: A2 | F131: A3 | G131: A4 | H131: 27C | I131: A2 | J131: A3 | K131: A4 | L131: 27C | M131: A2 | N131: A3 | O131: A4 | P131: 27C | Q131: A2 | R131: A3 | S131: A4 | T131: 27C | U131: A2 | V131: A3 | W131: A4 | X131: 27C | Y131: A2 | Z131: A3 | AA131: A4 | AB131: 27C | AC131: A2 | AD131: A3 | AE131: A4
C132: Max Ambient | D132: 27°C(1) | E132: 35°C | F132: 40°C | G132: 45°C | H132: 27°C(1) | I132: 35°C | J132: 40°C | K132: 45°C | L132: 27°C(1) | M132: 35°C | N132: 40°C | O132: 45°C | P132: 27°C(1) | Q132: 35°C | R132: 40°C | S132: 45°C | T132: 27°C(1) | U132: 35°C | V132: 40°C | W132: 45°C | X132: 27°C(1) | Y132: 35°C | Z132: 40°C | AA132: 45°C | AB132: 27°C(1) | AC132: 35°C | AD132: 40°C | AE132: 45°C
A133: PS (See note 2,6) | C133: 1600 W AC | D133: ● | E133: ● | H133: ● | I133: ● | L133: ● | M133: ● | P133: ● | Q133: ● | R133: ● | S133: ● | T133: ● | U133: ● | V133: ● | W133: ● | X133: ● | Y133: ● | Z133: ● | AA133: ● | AB133: ● | AC133: ● | AD133: ● | AE133: ●
C134: 1300W AC | D134: ● | E134: ● | H134: ● | I134: ● | L134: ● | M134: ● | P134: ● | Q134: ● | R134: ● | S134: ● | T134: ● | U134: ● | V134: ● | W134: ● | X134: ● | Y134: ● | Z134: ● | AA134: ● | AB134: ● | AC134: ● | AD134: ● | AE134: ●
C135: 1100W AC | D135: ● | E135: ● | H135: ● | I135: ● | L135: ● | M135: ● | P135: ● | Q135: ● | R135: ● | S135: ● | T135: ● | U135: ● | V135: ● | W135: ● | X135: ● | Y135: ● | Z135: ● | AA135: ● | AB135: ● | AC135: ● | AD135: ● | AE135: ●
A136: CPU TDP | B136: 205 W | C136: Intel® Xeon® Platinum 8280 CPU_28 | P136: ● | T136: ● | U136: ● | V136: ● | W136: 3 | AB136: ●
C137: Intel® Xeon® Platinum 8270 CPU_26C | P137: ● | T137: ● | U137: ● | V137: ● | W137: 3 | AB137: ●
C138: Intel® Xeon® Platinum 8268 CPU_24C | P138: ● | T138: ● | U138: ● | V138: ● | W138: 3 | AB138: ●
C139: Intel Xeon Platinum 8180_28C | P139: ● | T139: ● | U139: ● | V139: ●
C140: Intel Xeon Platinum 8168_24C | P140: ● | T140: ● | U140: ● | V140: ● | AB140: ●
B141: 200 W | C141: Intel® Xeon® Gold 6254 CPU_18C | P141: 3 | T141: ● | U141: ● | V141: ● | W141: 3
C142: Intel Xeon Gold 6154_18C | P142: ● | T142: ● | U142: ● | V142: ● | AB142: ●
B143: 173 W | C143: Intel Xeon Platinum 8176F_28C | P143: ● | Q143: 3 | T143: ● | U143: ● | V143: ● | W143: ● | AB143: ● | AC143: 3
B144: 165 W | C144: Intel® Xeon® Platinum 8276 CPU_28C | H144: 3 | P144: ● | Q144: ● | T144: ● | U144: ● | V144: ● | W144: ● | X144: 3 | AB144: ● | AC144: ●
C145: Intel® Xeon® Platinum 8260 CPU_24C | H145: 3 | P145: ● | Q145: ● | T145: ● | U145: ● | V145: ● | W145: ● | X145: 3 | AB145: ● | AC145: ●
C146: Intel Xeon Platinum 8176 _28C | D146: 3 | H146: ● | P146: ● | Q146: 3 | T146: ● | U146: ● | V146: ● | W146: ● | X146: 3 | AB146: ● | AC146: 3
C147: Intel Xeon Platinum 8170_26C | D147: 3 | H147: ● | P147: ● | Q147: 3 | T147: ● | U147: ● | V147: ● | W147: ● | X147: ● | AB147: ● | AC147: 3
C148: Intel Xeon Gold 6150_18C | D148: 3 | H148: ● | P148: ● | Q148: ● | T148: ● | U148: ● | V148: ● | W148: ● | X148: ● | AB148: ● | AC148: ●
C149: Intel Xeon Gold 6146_12C | H149: 3 | P149: ● | Q149: 3 | T149: ● | U149: ● | V149: 3 | W149: 3 | X149: 3 | AB149: 3 | AC149: 3
C150: Intel Xeon Platinum 8170F_26C | D150: 3 | H150: ● | P150: ● | Q150: ● | T150: ● | U150: ● | V150: ● | W150: ● | X150: ● | AB150: ● | AC150: ●
B151: 160 W | C151: Intel Xeon Platinum 8160F_24C | D151: 3 | H151: ● | P151: ● | Q151: ● | T151: ● | U151: ● | V151: ● | W151: ● | X151: ● | AB151: ● | AC151: ●
C152: Intel Xeon Gold 6148F_20C | D152: 3 | H152: ● | P152: ● | Q152: ● | T152: ● | U152: ● | V152: ● | W152: ● | X152: ● | AB152: ● | AC152: ●
C153: Intel Xeon Gold 6142F_16C | D153: 3 | H153: ● | P153: ● | Q153: ● | T153: ● | U153: ● | V153: ● | W153: ● | X153: ● | AB153: ● | AC153: ●
B154: 150 W | C154: Intel® Xeon® Gold 6252 CPU_24C | D154: ● | H154: ● | I154: 3 | P154: ● | Q154: ● | T154: ● | U154: ● | V154: ● | W154: ● | X154: ● | Y154: 3 | AB154: ● | AC154: ● | AD154: ● | AE154: 3
C155: Intel® Xeon® Gold 6248 CPU_20C | D155: ● | H155: ● | I155: 3 | P155: ● | Q155: ● | T155: ● | U155: ● | V155: ● | W155: ● | X155: ● | Y155: 3 | AB155: ● | AC155: ● | AD155: ● | AE155: 3
C156: Intel® Xeon® Gold 6240 CPU_18C | D156: ● | H156: ● | I156: 3 | P156: ● | Q156: ● | T156: ● | U156: ● | V156: ● | W156: 3 | X156: 3 | Y156: 3 | AB156: ● | AC156: ● | AD156: ●
C157: Intel® Xeon® Gold 6242 CPU_16C | D157: ● | H157: ● | I157: 3 | P157: ● | Q157: ● | T157: ● | U157: ● | V157: ● | W157: ● | X157: ● | Y157: 3 | AB157: ● | AC157: ● | AD157: ●
C158: Intel® Xeon® Gold 6244 CPU_8C | D158: ● | H158: 3 | I158: 3 | P158: ● | Q158: 3 | T158: ● | U158: ● | V158: ● | W158: ● | X158: 3 | AB158: ● | AC158: ●
C159: Intel Xeon Platinum 8164_26C | D159: ● | H159: ● | I159: 3 | P159: ● | Q159: ● | T159: ● | U159: ● | V159: ● | W159: ● | X159: ● | Y159: 3 | AB159: ● | AC159: ● | AD159: 3 | AE159: 3
C160: Intel Xeon Platinum 8160_24C | D160: ● | H160: ● | I160: 3 | P160: ● | Q160: ● | T160: ● | U160: ● | V160: ● | W160: ● | X160: ● | Y160: 3 | AB160: ● | AC160: ● | AD160: 3 | AE160: 3
C161: Intel Xeon Gold 6148_20C | D161: ● | H161: ● | I161: 3 | P161: ● | Q161: ● | T161: ● | U161: ● | V161: ● | W161: ● | X161: ● | Y161: 3 | AB161: ● | AC161: ● | AD161: 3 | AE161: 3
C162: Intel Xeon Gold 6136_12C | D162: ● | H162: ● | I162: ● | P162: ● | Q162: ● | T162: ● | U162: ● | V162: ● | W162: ● | X162: ● | Y162: ● | AB162: ● | AC162: ● | AD162: ● | AE162: ●
C163: Intel Xeon Gold 6144_8C | D163: 3 | H163: 3 | I163: 3 | P163: ● | Q163: 3 | T163: ● | U163: ● | V163: ● | W163: 3 | X163: 3 | Y163: 3 | AB163: ● | AC163: 3 | AD163: 3 | AE163: 3
C164: Intel Xeon Platinum 8158_12C | D164: ● | H164: ● | I164: ● | P164: ● | Q164: ● | T164: ● | U164: ● | V164: ● | W164: ● | X164: ● | Y164: ● | AB164: ● | AC164: ● | AD164: ● | AE164: ●
C165: Intel Xeon Gold 6142_16C | D165: ● | H165: ● | I165: 3 | P165: ● | Q165: ● | T165: ● | U165: ● | V165: ● | W165: ● | X165: ● | Y165: 3 | AB165: ● | AC165: ● | AD165: 3 | AE165: 3
B166: 140 W | C166: Intel Xeon Gold 6132_14C | D166: ● | E166: 3 | H166: ● | I166: 3 | L166: ● | P166: ● | Q166: ● | R166: ● | S166: 3 | T166: ● | U166: ● | V166: ● | W166: ● | X166: ● | Y166: ● | Z166: 3 | AB166: ● | AC166: ● | AD166: ● | AE166: ●
C167: Intel Xeon Gold 6152_22C | D167: ● | E167: ● | H167: ● | I167: ● | L167: ● | P167: ● | Q167: ● | R167: ● | S167: ● | T167: ● | U167: ● | V167: ● | W167: ● | X167: ● | Y167: ● | Z167: 3 | AB167: ● | AC167: ● | AD167: ● | AE167: ●
C168: Intel Xeon Gold 6140_18C | D168: ● | E168: ● | H168: ● | I168: ● | L168: ● | P168: ● | Q168: ● | R168: ● | S168: ● | T168: ● | U168: ● | V168: ● | W168: ● | X168: ● | Y168: ● | Z168: ● | AB168: ● | AC168: ● | AD168: ● | AE168: ●
B169: 135 W | C169: Intel Xeon Gold 6138F_20C | D169: ● | E169: ● | H169: ● | I169: ● | L169: 3 | P169: ● | Q169: ● | R169: ● | S169: ● | T169: ● | U169: ● | V169: ● | W169: ● | X169: ● | Y169: ● | Z169: ● | AB169: ● | AC169: ● | AD169: ● | AE169: ●
C170: Intel Xeon Gold 6130F_16C | D170: ● | E170: ● | H170: ● | I170: ● | L170: 3 | P170: ● | Q170: ● | R170: ● | S170: ● | T170: ● | U170: ● | V170: ● | W170: ● | X170: ● | Y170: ● | Z170: ● | AB170: ● | AC170: ● | AD170: ● | AE170: ●
C171: Intel Xeon Gold 6126F_12C | D171: ● | E171: ● | H171: ● | I171: ● | L171: 3 | P171: ● | Q171: ● | R171: ● | S171: ● | T171: ● | U171: ● | V171: ● | W171: ● | X171: ● | Y171: ● | Z171: ● | AB171: ● | AC171: ● | AD171: ● | AE171: ●
B172: 130 W | C172: Intel Xeon Gold 6134_8C | D172: ● | E172: ● | H172: ● | I172: ● | L172: ● | P172: ● | Q172: ● | R172: ● | S172: ● | T172: ● | U172: ● | V172: ● | W172: ● | X172: ● | Y172: ● | Z172: ● | AB172: ● | AC172: ● | AD172: ● | AE172: ●
B173: 125 W | C173: Intel® Xeon® Gold 6230 CPU_20C | D173: ● | E173: ● | H173: ● | I173: ● | L173: ● | M173: ● | P173: ● | Q173: ● | R173: ● | S173: ● | T173: ● | U173: ● | V173: ● | W173: ● | X173: ● | Y173: ● | Z173: ● | AB173: ● | AC173: ● | AD173: ● | AE173: ●
C174: Intel® Xeon® Gold 5220 CPU _18C | D174: ● | E174: ● | H174: ● | I174: ● | L174: ● | M174: ● | P174: ● | Q174: ● | R174: ● | S174: ● | T174: ● | U174: ● | V174: ● | W174: ● | X174: ● | Y174: ● | Z174: ● | AB174: ● | AC174: ● | AD174: ● | AE174: ●
C175: Intel® Xeon® Gold 5218 CPU_16C | D175: ● | E175: ● | H175: ● | I175: ● | L175: ● | M175: ● | P175: ● | Q175: ● | R175: ● | S175: ● | T175: ● | U175: ● | V175: ● | W175: ● | X175: ● | Y175: ● | Z175: ● | AB175: ● | AC175: ● | AD175: ● | AE175: ●
C176: Intel® Xeon® Platinum 8253 CPU_16C | D176: ● | E176: ● | H176: ● | I176: ● | L176: ● | M176: ● | P176: ● | Q176: ● | R176: ● | S176: ● | T176: ● | U176: ● | V176: ● | W176: ● | X176: ● | Y176: ● | Z176: ● | AB176: ● | AC176: ● | AD176: ● | AE176: ●
C177: Intel Xeon Gold 6138_20C | D177: ● | E177: ● | H177: ● | I177: ● | L177: ● | P177: ● | Q177: ● | R177: ● | S177: ● | T177: ● | U177: ● | V177: ● | W177: ● | X177: ● | Y177: ● | Z177: ● | AA177: 3 | AB177: ● | AC177: ● | AD177: ● | AE177: ●
C178: Intel Xeon Gold 6130_16C | D178: ● | E178: ● | H178: ● | I178: ● | L178: ● | P178: ● | Q178: ● | R178: ● | S178: ● | T178: ● | U178: ● | V178: ● | W178: ● | X178: ● | Y178: ● | Z178: ● | AA178: 3 | AB178: ● | AC178: ● | AD178: ● | AE178: ●
C179: Intel Xeon Platinum 8153_16C | D179: ● | E179: ● | H179: ● | I179: ● | L179: ● | P179: ● | Q179: ● | R179: ● | S179: ● | T179: ● | U179: ● | V179: ● | W179: ● | X179: ● | Y179: ● | Z179: ● | AA179: 3 | AB179: ● | AC179: ● | AD179: ● | AE179: ●
C180: Intel Xeon Gold 6126_12C | D180: ● | E180: ● | H180: ● | I180: ● | L180: ● | P180: ● | Q180: ● | R180: ● | S180: ● | T180: ● | U180: ● | V180: ● | W180: ● | X180: ● | Y180: ● | Z180: ● | AA180: ● | AB180: ● | AC180: ● | AD180: ● | AE180: ●
B181: 115 W | C181: Intel Xeon Gold 6128_6C | D181: ● | E181: ● | H181: ● | I181: ● | L181: ● | P181: ● | Q181: ● | R181: ● | S181: ● | T181: ● | U181: ● | V181: ● | W181: ● | X181: ● | Y181: ● | Z181: ● | AA181: ● | AB181: ● | AC181: ● | AD181: ● | AE181: ●
B182: 113 W | C182: Intel Xeon Gold 5117F_14C | D182: ● | E182: ● | H182: ● | I182: ● | L182: ● | M182: ● | P182: ● | Q182: ● | R182: ● | S182: ● | T182: ● | U182: ● | V182: ● | W182: ● | X182: ● | Y182: ● | Z182: ● | AA182: ● | AB182: ● | AC182: ● | AD182: ● | AE182: ●
B183: 105 W | C183: Intel Xeon Gold 5122_4C | D183: ● | E183: ● | H183: ● | I183: ● | L183: ● | M183: ● | P183: ● | Q183: ● | R183: ● | S183: ● | T183: ● | U183: ● | V183: ● | W183: ● | X183: ● | Y183: ● | Z183: ● | AA183: ● | AB183: ● | AC183: ● | AD183: ● | AE183: ●
C184: Intel Xeon Platinum 8156_4C | D184: ● | E184: ● | H184: ● | I184: ● | L184: ● | M184: ● | P184: ● | Q184: ● | R184: ● | S184: ● | T184: ● | U184: ● | V184: ● | W184: ● | X184: ● | Y184: ● | Z184: ● | AA184: ● | AB184: ● | AC184: ● | AD184: ● | AE184: ●
C185: Intel Xeon Gold 5120_14C | D185: ● | E185: ● | H185: ● | I185: ● | L185: ● | M185: 3 | P185: ● | Q185: ● | R185: ● | S185: ● | T185: ● | U185: ● | V185: ● | W185: ● | X185: ● | Y185: ● | Z185: ● | AA185: ● | AB185: ● | AC185: ● | AD185: ● | AE185: ●
C186: Intel Xeon Gold 5118_12C | D186: ● | E186: ● | H186: ● | I186: ● | L186: ● | M186: 3 | P186: ● | Q186: ● | R186: ● | S186: ● | T186: ● | U186: ● | V186: ● | W186: ● | X186: ● | Y186: ● | Z186: ● | AA186: ● | AB186: ● | AC186: ● | AD186: ● | AE186: ●
B187: 85 W | C187: Intel® Xeon® Gold 5215 CPU_10C | D187: ● | E187: ● | H187: ● | I187: ● | L187: ● | M187: ● | P187: ● | Q187: ● | R187: ● | S187: ● | T187: ● | U187: ● | V187: ● | W187: ● | X187: ● | Y187: ● | Z187: ● | AA187: ● | AB187: ● | AC187: ● | AD187: ● | AE187: ●
C188: Intel Xeon Gold 5115_10C | D188: ● | E188: ● | H188: ● | I188: ● | L188: ● | M188: ● | P188: ● | Q188: ● | R188: ● | S188: ● | T188: ● | U188: ● | V188: ● | W188: ● | X188: ● | Y188: ● | Z188: ● | AA188: ● | AB188: ● | AC188: ● | AD188: ● | AE188: ●
C189: Intel Xeon Silver 4116_12C | D189: ● | E189: ● | H189: ● | I189: ● | L189: ● | M189: ● | P189: ● | Q189: ● | R189: ● | S189: ● | T189: ● | U189: ● | V189: ● | W189: ● | X189: ● | Y189: ● | Z189: ● | AA189: ● | AB189: ● | AC189: ● | AD189: ● | AE189: ●
C190: Intel Xeon Silver 4114_10C | D190: ● | E190: ● | H190: ● | I190: ● | L190: ● | M190: ● | P190: ● | Q190: ● | R190: ● | S190: ● | T190: ● | U190: ● | V190: ● | W190: ● | X190: ● | Y190: ● | Z190: ● | AA190: ● | AB190: ● | AC190: ● | AD190: ● | AE190: ●
C191: Intel Xeon Silver 4110_8C | D191: ● | E191: ● | H191: ● | I191: ● | L191: ● | M191: ● | P191: ● | Q191: ● | R191: ● | S191: ● | T191: ● | U191: ● | V191: ● | W191: ● | X191: ● | Y191: ● | Z191: ● | AA191: ● | AB191: ● | AC191: ● | AD191: ● | AE191: ●
C192: Intel Xeon Silver 4108 _8C | D192: ● | E192: ● | H192: ● | I192: ● | L192: ● | M192: ● | P192: ● | Q192: ● | R192: ● | S192: ● | T192: ● | U192: ● | V192: ● | W192: ● | X192: ● | Y192: ● | Z192: ● | AA192: ● | AB192: ● | AC192: ● | AD192: ● | AE192: ●
C193: Intel Xeon Bronze 3106 _8C | D193: ● | E193: ● | H193: ● | I193: ● | L193: ● | M193: ● | P193: ● | Q193: ● | R193: ● | S193: ● | T193: ● | U193: ● | V193: ● | W193: ● | X193: ● | Y193: ● | Z193: ● | AA193: ● | AB193: ● | AC193: ● | AD193: ● | AE193: ●
C194: Intel Xeon Bronze 3104_6C | D194: ● | E194: ● | H194: ● | I194: ● | L194: ● | M194: ● | P194: ● | Q194: ● | R194: ● | S194: ● | T194: ● | U194: ● | V194: ● | W194: ● | X194: ● | Y194: ● | Z194: ● | AA194: ● | AB194: ● | AC194: ● | AD194: ● | AE194: ●
C195: Intel Xeon Silver 4112_4C | D195: ● | E195: ● | H195: ● | I195: ● | L195: ● | M195: ● | P195: ● | Q195: ● | R195: ● | S195: ● | T195: ● | U195: ● | V195: ● | W195: ● | X195: ● | Y195: ● | Z195: ● | AA195: ● | AB195: ● | AC195: ● | AD195: ● | AE195: ●
A196: Memory Type ( See note 23) | C196: AEP SDP 128 GB | D196: ● | E196: ● | H196: ● | I196: ● | L196: ● | M196: ● | P196: ● | Q196: ● | R196: ● | S196: ● | T196: ● | U196: ● | V196: ● | W196: ● | X196: ● | Y196: ● | Z196: ● | AA196: ● | AB196: ● | AC196: ● | AD196: ● | AE196: ●
C197: AEP DDQ 256 GB | D197: ● | E197: ● | H197: ● | I197: ● | L197: ● | M197: ● | P197: ● | Q197: ● | R197: ● | S197: ● | T197: ● | U197: ● | V197: ● | W197: ● | X197: ● | Y197: ● | Z197: ● | AA197: ● | AB197: ● | AC197: ● | AD197: ● | AE197: ●
C198: AEP QDP 512 GB | D198: ● | E198: ● | H198: ● | I198: ● | L198: ● | M198: ● | P198: ● | Q198: ● | R198: ● | S198: 3 | T198: ● | U198: ● | V198: ● | W198: ● | X198: ● | Y198: ● | Z198: 3 | AA198: 3 | AB198: ● | AC198: ● | AD198: 3 | AE198: 3
C199: RDIMM-2Rx8,1Rx4, 1Rx8 | D199: ● | E199: ● | H199: ● | I199: ● | L199: ● | M199: ● | P199: ● | Q199: ● | R199: ● | S199: ● | T199: ● | U199: ● | V199: ● | W199: ● | X199: ● | Y199: ● | Z199: ● | AA199: ● | AB199: ● | AC199: ● | AD199: ● | AE199: ●
C200: RDIMM-DRx4 | D200: ● | E200: ● | H200: ● | I200: ● | L200: ● | M200: ● | P200: ● | Q200: ● | R200: ● | S200: ● | T200: ● | U200: ● | V200: ● | W200: ● | X200: ● | Y200: ● | Z200: ● | AA200: ● | AB200: ● | AC200: ● | AD200: ● | AE200: ●
C201: LRDIMM-QRx4 DDP | D201: ● | E201: ● | H201: ● | I201: ● | L201: ● | M201: 3 | P201: ● | Q201: ● | R201: 3 | S201: 3 | T201: ● | U201: ● | V201: ● | W201: ● | X201: ● | Y201: ● | Z201: 3 | AA201: 3 | AB201: ● | AC201: ● | AD201: ● | AE201: ●
A202: Add-in Cards (See note 5) | C202: Riser #1 - Bottom Slot (1U riser and 2U riser) | D202: ● | E202: ● | H202: ● | I202: ● | L202: ● | M202: ● | P202: ● | Q202: ● | R202: ● | S202: ● | T202: ● | U202: ● | V202: ● | W202: ● | X202: ● | Y202: ● | Z202: ● | AA202: ● | AB202: ● | AC202: ● | AD202: ● | AE202: ●
C203: Riser #1 - Middle Slot (2U riser) | D203: ● | E203: ● | H203: ● | I203: ● | L203: ● | M203: ● | P203: ● | Q203: ● | R203: ● | S203: ● | T203: ● | U203: ● | V203: ● | W203: ●
C204: Riser #1 - Top Slot (2U riser) | D204: ● | E204: ● | H204: ● | I204: ● | L204: ● | M204: ● | P204: ● | Q204: ● | R204: ● | S204: ● | T204: ● | U204: ● | V204: ● | W204: ● | X204: ● | Y204: ● | Z204: ● | AA204: ● | AB204: ● | AC204: ● | AD204: ● | AE204: ●
C205: Riser #2 - Bottom Slot (1U riser and 2U riser) | D205: ● | E205: ● | H205: ● | I205: ● | L205: ● | M205: ● | P205: ● | Q205: ● | R205: ● | S205: ● | T205: ● | U205: ● | V205: ● | W205: ● | X205: ● | Y205: ● | Z205: ● | AA205: ● | AB205: ● | AC205: ● | AD205: ● | AE205: ●
C206: Riser #2 - Middle Slot (2U riser) | D206: ● | E206: ● | H206: ● | I206: ● | L206: ● | M206: ● | P206: ● | Q206: ● | R206: ● | S206: ● | T206: ● | U206: ● | V206: ● | W206: ●
C207: Riser #2 - Top Slot (2U riser) | D207: ● | E207: ● | H207: ● | I207: ● | L207: ● | M207: ● | P207: ● | Q207: ● | R207: ● | S207: ● | T207: ● | U207: ● | V207: ● | W207: ● | X207: ● | Y207: ● | Z207: ● | AA207: ● | AB207: ● | AC207: ● | AD207: ● | AE207: ●
A208: 3rd PCI Riser | C208: Riser #3 - Bottom Slot | D208: ● | E208: ● | H208: ● | I208: ● | L208: ● | M208: ● | P208: ● | Q208: ● | R208: ● | S208: 5 | T208: ● | U208: ● | V208: ● | W208: 5 | X208: ● | Y208: ● | Z208: 5 | AA208: 5 | AB208: ● | AC208: ● | AD208: 5 | AE208: 5
C209: Riser #3 - Top Slot | D209: ● | E209: ● | H209: ● | I209: ● | L209: ● | M209: ● | P209: ● | Q209: ● | R209: ● | S209: 5 | T209: ● | U209: ● | V209: ● | W209: 5 | X209: ● | Y209: ● | Z209: 5 | AA209: 5 | AB209: ● | AC209: ● | AD209: 5 | AE209: 5
A210: SAS and OCP Modules (See Note 4) | C210: Intel® Integrated RAID Modules (Mezzanine cards) | D210: ● | E210: ● | H210: ● | I210: ● | L210: ● | M210: ● | P210: ● | Q210: ● | R210: ● | S210: ● | T210: ● | U210: ● | V210: ● | W210: ● | X210: ● | Y210: ● | Z210: ● | AA210: ● | AB210: ● | AC210: ● | AD210: ● | AE210: ●
C211: 16 port tri mode mezzanine | D211: ● | E211: ● | H211: ● | I211: ● | L211: ● | M211: ● | P211: ● | Q211: ● | R211: ● | S211: ● | T211: ● | U211: ● | V211: ● | W211: ● | X211: ● | Y211: ● | Z211: ● | AA211: ● | AB211: ● | AC211: ● | AD211: ● | AE211: ●
C212: IFT carrier AIC | D212: ● | E212: ● | H212: ● | I212: ● | L212: ● | M212: 27 | P212: ● | Q212: ● | R212: ● | S212: ● | T212: ● | U212: ● | V212: ● | W212: ● | X212: ● | Y212: ● | Z212: ● | AA212: ● | AB212: ● | AC212: ● | AD212: ● | AE212: ●
C213: IFT carrier Mezzanine | D213: ● | E213: ● | H213: ● | I213: ● | L213: ● | M213: 27 | P213: ● | Q213: ● | R213: ● | S213: ● | T213: ● | U213: ● | V213: ● | W213: ● | X213: ● | Y213: ● | Z213: ● | AA213: ● | AB213: ● | AC213: ● | AD213: ● | AE213: ●
C214: Dual 10GBase-T Taylor Canal | D214: ● | E214: ● | H214: ● | I214: ● | L214: ● | M214: ● | P214: ● | Q214: ● | R214: ● | S214: ● | T214: ● | U214: ● | V214: ● | W214: ● | X214: ● | Y214: ● | Z214: ● | AA214: ● | AB214: ● | AC214: ● | AD214: ● | AE214: 27
C215: Dual SFP+ Cascade Canal | D215: ● | E215: ● | H215: ● | I215: ● | L215: ● | M215: ● | P215: ● | Q215: ● | R215: ● | S215: ● | T215: ● | U215: ● | V215: ● | W215: ● | X215: ● | Y215: ● | Z215: ● | AA215: ● | AB215: ● | AC215: ● | AD215: ● | AE215: 27
C216: Quad SFP+ Cascade Canal | D216: ● | E216: ● | H216: ● | I216: ● | L216: ● | M216: ● | P216: ● | Q216: ● | R216: ● | S216: ● | T216: ● | U216: ● | V216: ● | W216: ● | X216: ● | Y216: ● | Z216: ● | AA216: ● | AB216: ● | AC216: ● | AD216: ● | AE216: 27
C217: 1GBase-T Quad Main Canal | D217: ● | E217: ● | H217: ● | I217: ● | L217: ● | M217: ● | P217: ● | Q217: ● | R217: ● | S217: ● | T217: ● | U217: ● | V217: ● | W217: ● | X217: ● | Y217: ● | Z217: ● | AA217: ● | AB217: ● | AC217: ● | AD217: ● | AE217: 27
A218: Battery Backup (See note 9) | C218: BBU (rated to 45C) | H218: ● | L218: ● | P218: ● | Q218: ● | R218: ● | S218: ● | T218: ● | U218: ● | V218: ● | W218: ● | X218: ● | Y218: ● | Z218: ● | AA218: ● | AB218: ● | AC218: ●
C219: Supercap (rated to 55C) | D219: ● | E219: ● | H219: ● | I219: ● | L219: ● | M219: ● | P219: ● | Q219: ● | R219: ● | S219: ● | T219: ● | U219: ● | V219: ● | W219: ● | X219: ● | Y219: ● | Z219: ● | AA219: ● | AB219: ● | AC219: ●
C220: Cache Offload Module (rated to 55C) | D220: ● | E220: ● | H220: ● | I220: ● | L220: ● | M220: ● | P220: ● | Q220: ● | R220: ● | S220: ● | T220: ● | U220: ● | V220: ● | W220: ● | X220: ● | Y220: ● | Z220: ● | AA220: ● | AB220: ● | AC220: ●
A221: Internal SSD | C221: Rated to 60C | H221: ● | L221: ● | P221: ● | Q221: ● | R221: ● | S221: ● | T221: ● | U221: ● | V221: ● | W221: ● | X221: ● | Y221: ● | Z221: ● | AA221: ● | AB221: ● | AC221: ●
C222: Rated to 70C | D222: ● | E222: ● | H222: ● | I222: ● | L222: ● | M222: ● | P222: ● | Q222: ● | R222: ● | S222: ● | T222: ● | U222: ● | V222: ● | W222: ● | X222: ● | Y222: ● | Z222: ● | AA222: ● | AB222: ● | AC222: ● | AD222: ●
A223: Rear SSD | C223: Rated to 60C | D223: ● | H223: ● | L223: ● | P223: ● | Q223: ● | T223: ● | U223: ● | X223: ● | Y223: ● | Z223: ● | AA223: ● | AB223: ● | AC223: ●
C224: Rated to 70C | D224: ● | E224: ● | H224: ● | I224: ● | L224: ● | M224: ● | P224: ● | Q224: ● | R224: ● | S224: ● | T224: ● | U224: ● | V224: ● | W224: ● | X224: ● | Y224: ● | Z224: ● | AA224: ● | AB224: ● | AC224: ● | AD224: ●
... 20 more rows

Sheet Fan Fail Config
A1: Fan Failure Thermal Config Matrix | N1: =Summary!D15 ->  | O1: <-- Margin to PS rating
A2: Thermal Config Matrix Fan fail mode "●"= Full Support without limitation; "4,5"(Cell with number)=Conditional support with limitation; (See notes below table) " "(Blank)=Not support; | D2: R1304 HDD WF | H2: R1208 HDD WF | L2: R1208 NVME WF
A3: ASHRAE (See note 1) | C3: Classifications | D3: 27C | E3: A2 | F3: A3 | G3: A4 | H3: 27C | I3: A2 | J3: A3 | K3: A4 | L3: 27C | M3: A2 | N3: A3 | O3: A4
C4: Max Ambient | D4: 27°C(1) | E4: 35°C | F4: 40°C | G4: 45°C | H4: 27°C(1) | I4: 35°C | J4: 40°C | K4: 45°C | L4: 27°C(1) | M4: 35°C | N4: 40°C | O4: 45°C
C5: Altitude | D5: 900 | E5: 900 | F5: 900 | G5: 900 | H5: 900 | I5: 900 | J5: 900 | K5: 900 | L5: 900 | M5: 900 | N5: 900 | O5: 900
A6: PS (See note 6) | C6: 1300W AC | D6: 2 | E6: 2 | F6: 2 | G6: 2 | H6: 2 | I6: 2 | J6: 2 | K6: 2 | L6: 2 | M6: 2 | N6: 2 | O6: 2
C7: 1100W AC | D7: 2 | E7: 2 | F7: 2 | G7: 2 | H7: 2 | I7: 2 | J7: 2 | K7: 2 | L7: 2 | M7: 2 | N7: 2 | O7: 2
C8: 750W DC | D8: 2, 20, 24 | E8: 2, 21, 24 | F8: 2 | G8: 2 | H8: 2, 20, 24 | I8: 2, 21 | J8: 2 | K8: 2
B9: 173 W | C9: Intel Xeon Platinum 8176F _28C | D9: 23 | E9: 23 | H9: 23 | L9: 23
A10: CPU TDP | B10: 165 W | C10: Intel® Xeon® Platinum 8276 CPU_28C | D10: 23 | E10: 23 | H10: 23 | I10: 23 | L10: 23
C11: Intel® Xeon® Platinum 8260 CPU_24C | D11: 23 | E11: 23 | H11: 23 | I11: 23 | L11: 23
C12: Intel Xeon Platinum 8176 _28C | D12: 23 | E12: 23 | H12: 23 | L12: 23
C13: Intel Xeon Platinum 8170_26C | D13: 23 | E13: 23 | H13: 23 | L13: 23
C14: Intel Xeon Gold 6150_18C | D14: 23 | E14: 23 | H14: 23 | L14: 23
C15: Intel Xeon Gold 6146_12C | D15: 23 | E15: 23 | H15: 23 | I15: 23 | L15: 23
C16: Intel Xeon Platinum 8170F_26C | D16: 23 | E16: 23 | H16: 23 | I16: 23 | L16: 23
B17: 160 W | C17: Intel Xeon Platinum 8160F_24C | D17: 23 | E17: 23 | H17: 23 | I17: 23 | L17: 23
C18: Intel Xeon Gold 6148F_20C | D18: 23 | E18: 23 | H18: 23 | I18: 23 | L18: 23
C19: Intel Xeon Gold 6142F_16C | D19: 23 | E19: 23 | H19: 23 | I19: 23 | L19: 23
B20: 150 W | C20: Intel® Xeon® Gold 6252 CPU_24C | D20: 23 | E20: 23 | H20: 23 | I20: 23 | L20: 23
C21: Intel® Xeon® Gold 6248 CPU_20C | D21: 23 | E21: 23 | H21: 23 | I21: 23 | L21: 23
C22: Intel® Xeon® Gold 6240 CPU_18C | D22: 23 | E22: 23 | F22: Gap, Max Tj, % Pass, Acoustic %, throttle %, Max Power Gap, Excursion Spec 10.1, 108.7, 7.93, 0, 74.42, 20.61, Pass | H22: 23 | I22: 23 | L22: 23
C23: Intel® Xeon® Gold 6242 CPU_16C | D23: 23 | E23: 23 | F23: Gap, Max Tj, % Pass, Acoustic %, throttle %, Max Power Gap, Excursion Spec 9.6, 110.6, 9.93, 0, 71.36, 19.87, Pass | H23: 23 | I23: 23 | L23: 23
C24: Intel® Xeon® Gold 6244 CPU_8C | D24: Gap, Max Tj, % Pass, Acoustic %, throttle %, Max Power Gap, Excursion Spec 5.1, 105.8, 85.1, 0, 5.45, 7.6, Pass | H24: 23 | I24: 23 | L24: Gap, Max Tj, % Pass, Acoustic %, throttle %, Max Power Gap, Excursion Spec 10.6, 111.1, 9.46, 0, 72.09, 17.52, Pass
C25: Intel Xeon Platinum 8164_26C | D25: 3 | E25: 23 | F25: 23 | H25: 23 | I25: 23 | L25: 23
C26: Intel Xeon Platinum 8160_24C | D26: 3 | E26: 23 | F26: 23 | H26: 23 | I26: 23 | L26: 23
C27: Intel Xeon Gold 6148_20C | D27: 3 | E27: 23 | F27: 23 | H27: 23 | I27: 23 | L27: 23
C28: Intel Xeon Gold 6136_12C | D28: 3 | E28: 23 | F28: 23 | H28: 23 | I28: 23 | L28: 23
C29: Intel Xeon Gold 6144_8C | D29: 3 | E29: 23 | F29: 23 | H29: 23 | I29: 23 | L29: 23
C30: Intel Xeon Platinum 8158_12C | D30: 3 | E30: 23 | F30: 23 | H30: 23 | I30: 23 | L30: 23
C31: Intel Xeon Gold 6142_16C | D31: 3 | E31: 23 | F31: 23 | H31: 23 | I31: 23 | L31: 23
B32: 140 W | C32: Intel Xeon Gold 6132_14C | D32: 3 | E32: 3 | F32: 23 | H32: 3 | I32: 23 | J32: 23 | L32: 3 | M32: 23
C33: Intel Xeon Gold 6152_22C | D33: 3 | E33: 3 | F33: 23 | H33: 3 | I33: 23 | J33: 23 | L33: 3 | M33: 23
C34: Intel Xeon Gold 6140_18C | D34: 3 | E34: 3 | F34: 23 | H34: 3 | I34: 23 | J34: 23 | L34: 3 | M34: 23
B35: 135 W | C35: Intel Xeon Gold 6138F_20C | D35: 3 | E35: 3 | F35: 23 | H35: 3 | I35: 23 | J35: 23 | L35: ● | M35: 23
C36: Intel Xeon Gold 6130F_16C | D36: 3 | E36: 3 | F36: 23 | H36: 3 | I36: 23 | J36: 23 | L36: ● | M36: 23
C37: Intel Xeon Gold 6126F_12C | D37: 3 | E37: 3 | F37: 23 | H37: 3 | I37: 23 | J37: 23 | L37: ● | M37: 23
B38: 130 W | C38: Intel Xeon Gold 6134_8C | D38: ● | E38: 3 | F38: 23 | H38: ● | I38: 23 | J38: 23 | L38: ● | M38: 23
B39: 125 W | C39: Intel® Xeon® Gold 6230 CPU_20C | D39: 23 | E39: 23 | F39: 23 | G39: Gap, Max Tj, % Pass, Acoustic %, throttle %, Max Power Gap, Excursion Spec 5.2, 101.1, 78.59, 0, 10.85, 10.61, Pass | H39: ● | I39: 23 | J39: 23 | K39: 23 | L39: ● | M39: 23 | N39: 23
C40: Intel® Xeon® Gold 5220 CPU _18C | D40: 23 | E40: 23 | F40: 23 | G40: Gap, Max Tj, % Pass, Acoustic %, throttle %, Max Power Gap, Excursion Spec 5, 101.8, 79.6, 0, 10.07, 9.59, Pass | H40: ● | I40: 23 | J40: 23 | K40: 23 | L40: ● | M40: 23 | N40: 23
C41: Intel® Xeon® Gold 5218 CPU_16C | D41: 23 | E41: 23 | F41: 23 | G41: Gap, Max Tj, % Pass, Acoustic %, throttle %, Max Power Gap, Excursion Spec 4.9, 101.7, 80.08, 0, 9.76, 9.37, Pass | H41: ● | I41: 23 | J41: 23 | K41: 23 | L41: ● | M41: 23 | N41: 23
C42: Intel® Xeon® Platinum 8253 CPU_16C | D42: 23 | E42: 23 | F42: 23 | G42: Gap, Max Tj, % Pass, Acoustic %, throttle %, Max Power Gap, Excursion Spec 4.8, 101.7, 80.36, 0, 9.59, 9.38, Pass | H42: ● | I42: 23 | J42: 23 | K42: 23 | L42: ● | M42: 23 | N42: 23
C43: Intel Xeon Gold 6138_20C | D43: ● | E43: 3 | F43: 23 | G43: 23 | H43: ● | I43: 3 | J43: 23 | K43: 23 | L43: ● | M43: 3 | N43: 23
C44: Intel Xeon Gold 6130_16C | D44: ● | E44: 3 | F44: 23 | G44: 23 | H44: ● | I44: 3 | J44: 23 | K44: 23 | L44: ● | M44: 3 | N44: 23
C45: Intel Xeon Platinum 8153_16C | D45: ● | E45: 3 | F45: 23 | G45: 23 | H45: ● | I45: 3 | J45: 23 | K45: 23 | L45: ● | M45: 3 | N45: 23
C46: Intel Xeon Gold 6126_12C | D46: ● | E46: 3 | F46: 23 | G46: 23 | H46: ● | I46: 3 | J46: 23 | K46: 23 | L46: ● | M46: 3 | N46: 23
B47: 115 W | C47: Intel Xeon Gold 6128_6C | D47: ● | E47: ● | F47: ● | G47: 23 | H47: ● | I47: ● | J47: 23 | K47: 23 | L47: ● | M47: ● | N47: 23
B48: 113 W | C48: Intel Xeon Gold 5117F_14C | D48: ● | E48: ● | F48: 23 | G48: 23 | H48: ● | I48: ● | J48: 23 | K48: 23 | L48: ● | M48: ● | N48: 23
B49: 105 W | C49: Intel Xeon Gold 5122_4C | D49: ● | E49: ● | F49: 3 | G49: 23 | H49: ● | I49: ● | J49: 3 | K49: 23 | L49: ● | M49: ● | N49: 3 | O49: 23
C50: Intel Xeon Platinum 8156_4C | D50: ● | E50: ● | F50: 3 | G50: 23 | H50: ● | I50: ● | J50: 3 | K50: 23 | L50: ● | M50: ● | N50: 3 | O50: 23
C51: Intel Xeon Gold 5120_14C | D51: ● | E51: ● | F51: 3 | G51: 23 | H51: ● | I51: ● | J51: 3 | K51: 23 | L51: ● | M51: ● | N51: 3 | O51: 23
C52: Intel Xeon Gold 5118_12C | D52: ● | E52: ● | F52: 3 | G52: 23 | H52: ● | I52: ● | J52: 3 | K52: 23 | L52: ● | M52: ● | N52: 3 | O52: 23
B53: 85 W | C53: Intel® Xeon® Gold 5215 CPU_10C | D53: 23 | E53: 23 | F53: 23 | G53: 23 | H53: ● | I53: ● | J53: ● | K53: 23 | L53: ● | M53: ● | N53: ● | O53: Gap, Max Tj, % Pass, Acoustic %, throttle %, Max Power Gap, Excursion Spec 7, 93.2, 38.96, 0, 45.34, 12.92, Pass
C54: Intel Xeon Gold 5115_10C | D54: ● | E54: ● | F54: ● | G54: 23 | H54: ● | I54: ● | J54: ● | K54: 23 | L54: ● | M54: ● | N54: ● | O54: 23
C55: Intel Xeon Silver 4116_12C | D55: ● | E55: ● | F55: ● | G55: 23 | H55: ● | I55: ● | J55: ● | K55: 23 | L55: ● | M55: ● | N55: ● | O55: 23
C56: Intel Xeon Silver 4114_10C | D56: ● | E56: ● | F56: ● | G56: 23 | H56: ● | I56: ● | J56: ● | K56: 23 | L56: ● | M56: ● | N56: ● | O56: 23
C57: Intel Xeon Silver 4110_8C | D57: ● | E57: ● | F57: ● | G57: 23 | H57: ● | I57: ● | J57: ● | K57: 23 | L57: ● | M57: ● | N57: ● | O57: 23
C58: Intel Xeon Silver 4108 _8C | D58: ● | E58: ● | F58: ● | G58: 23 | H58: ● | I58: ● | J58: ● | K58: 23 | L58: ● | M58: ● | N58: ● | O58: 23
C59: Intel Xeon Bronze 3106 _8C | D59: ● | E59: ● | F59: ● | G59: 23 | H59: ● | I59: ● | J59: ● | K59: 23 | L59: ● | M59: ● | N59: ● | O59: 23
C60: Intel Xeon Bronze 3104_6C | D60: ● | E60: ● | F60: ● | G60: 23 | H60: ● | I60: ● | J60: ● | K60: 23 | L60: ● | M60: ● | N60: ● | O60: 23
C61: Intel Xeon Silver 4112_4C | D61: ● | E61: ● | F61: ● | G61: 23 | H61: ● | I61: ● | J61: ● | K61: 23 | L61: ● | M61: ● | N61: ● | O61: 23
A66: Memory Type ( See note 16) | C66: AEP SDP 128 GB | D66: ● | E66: 3 | F66: 3 | G66: 3 | H66: ● | I66: ● | J66: 3 | K66: 3 | L66: ● | M66: ● | N66: 3 | O66: 3
C67: AEP DDQ 256 GB | D67: ● | E67: 3 | F67: 3 | G67: 3 | H67: ● | I67: ● | J67: 3 | K67: 3 | L67: ● | M67: ● | N67: 3 | O67: 3
C68: AEP QDP 512 GB | D68: 3 | E68: 3 | F68: 3 | G68: 3 | H68: ● | I68: 3 | J68: 3 | K68: 3 | L68: ● | M68: 3 | N68: 3 | O68: 3
C69: RDIMM-2Rx8,1Rx4, 1Rx8 | D69: ● | E69: ● | F69: ● | G69: ● | H69: ● | I69: ● | J69: ● | K69: ● | L69: ● | M69: ● | N69: ● | O69: ●
C70: RDIMM-DRx4 | D70: ● | E70: ● | F70: ● | G70: ● | H70: ● | I70: ● | J70: ● | K70: ● | L70: ● | M70: ● | N70: ● | O70: ●
C71: LRDIMM-QRx4 DDP | D71: ● | E71: 3 | F71: 3 | G71: 3 | H71: ● | I71: 3 | J71: 3 | K71: 3 | L71: ● | M71: 3 | N71: 3 | O71: 3
A72: Add-in Cards (See note 5) | C72: Riser #1 - Bottom Slot (1U riser and 2U riser) | D72: ● | E72: ● | F72: ● | G72: ● | H72: ● | I72: ● | J72: ● | K72: ● | L72: ● | M72: ● | N72: ● | O72: ●
C73: Riser #2 - Bottom Slot (1U riser and 2U riser) | D73: ● | E73: ● | F73: ● | G73: ● | H73: ● | I73: ● | J73: ● | K73: ● | L73: ● | M73: ● | N73: ● | O73: ●
A74: 3rd PCI Riser
A76: 3rd PCI Riser | C76: Riser #3 - Bottom Slot
C77: Riser #3 - Top Slot
A78: SAS and OCP Modules (See Note 4) | C78: Intel® Integrated RAID Modules (Mezzanine cards) | D78: ● | E78: ● | F78: ● | G78: ● | H78: ● | I78: ● | J78: ● | K78: ● | L78: ● | M78: ● | N78: ● | O78: ●
C79: 16 port tri mode mezzanine | D79: ● | E79: 26 | F79: 26 | G79: 26 | H79: ● | I79: 26 | J79: 26 | K79: 26 | L79: ● | M79: 26 | N79: 26 | O79: 26
C80: IFT carrier AIC | D80: 26 | E80: 26 | F80: 26 | G80: 26 | H80: 26 | I80: 26 | J80: 26 | K80: 26 | L80: 26 | M80: 26 | N80: 26 | O80: 26
C81: IFT carrier Mezzanine | D81: 26 | E81: 26 | F81: 26 | G81: 26 | H81: 26 | I81: 26 | J81: 26 | K81: 26 | L81: 26 | M81: 26 | N81: 26 | O81: 26
C82: Dual 10GBase-T Taylor Canal | D82: ● | E82: ● | F82: ● | G82: ● | H82: ● | I82: ● | J82: ● | K82: ● | L82: ● | M82: ● | N82: ● | O82: ●
C83: QP 10GBase-T Taylor Canal | D83: ● | E83: 12 | F83: 13 | G83: 14 | H83: ● | I83: 12 | J83: 13 | K83: 14 | L83: ● | M83: 12 | N83: 13 | O83: 14
C84: Dual SFP+ Cascade Canal | D84: ● | E84: ● | F84: ● | G84: ● | H84: ● | I84: ● | J84: ● | K84: ● | L84: ● | M84: ● | N84: ● | O84: ●
C85: Quad SFP+ Cascade Canal | D85: ● | E85: ● | F85: ● | G85: ● | H85: ● | I85: ● | J85: ● | K85: ● | L85: ● | M85: ● | N85: ● | O85: ●
C86: 1GBase-T Quad Main Canal | D86: ● | E86: ● | F86: ● | G86: ● | H86: ● | I86: ● | J86: ● | K86: ● | L86: ● | M86: ● | N86: ● | O86: ●
A87: Battery Backup (See note 9) | C87: BBU (rated to 45C) | D87: ● | E87: ● | H87: ● | I87: ● | L87: ● | M87: ●
C88: Supercap (rated to 55C) | D88: ● | E88: ● | H88: ● | I88: ● | L88: ● | M88: ●
C89: Cache Offload Module (rated to 55C) | D89: ● | E89: ● | F89: ● | G89: ● | H89: ● | I89: ● | J89: ● | K89: ● | L89: ● | M89: ● | N89: ● | O89: ●
A90: 2.5" SFF NVMe SSD (DC P3700/P3500) ( See note 22) | C90: 1600GB/2TB | L90: ● | M90: ● | N90: ● | O90: ●
C91: 800GB | L91: ● | M91: ● | N91: ● | O91: ●
C92: 600GB | L92: ● | M92: ● | N92: ● | O92: ●
C93: 400GB | L93: ● | M93: ● | N93: ● | O93: ●
C94: 200GB | L94: ● | M94: ● | N94: ● | O94: ●
A95: SATA HDD | C95: Up to 2 TB | D95: ● | E95: ● | F95: ● | G95: ● | H95: ● | I95: ● | J95: ● | K95: ● | L95: ● | M95: ● | N95: ● | O95: ●
A96: PCIe SSD AIC FF (DC P3700/P3500) (See note 8) | C96: 1600GB/2TB | D96: ● | E96: ● | F96: ● | G96: ● | H96: ● | I96: ● | J96: ● | K96: ● | L96: ● | M96: ● | N96: ● | O96: ●
C97: 800GB | D97: ● | E97: ● | F97: ● | G97: ● | H97: ● | I97: ● | J97: ● | K97: ● | L97: ● | M97: ● | N97: ● | O97: ●
C98: 600GB | D98: ● | E98: ● | F98: ● | G98: ● | H98: ● | I98: ● | J98: ● | K98: ● | L98: ● | M98: ● | N98: ● | O98: ●
C99: 400GB | D99: ● | E99: ● | F99: ● | G99: ● | H99: ● | I99: ● | J99: ● | K99: ● | L99: ● | M99: ● | N99: ● | O99: ●
C100: 200GB | D100: ● | E100: ● | F100: ● | G100: ● | H100: ● | I100: ● | J100: ● | K100: ● | L100: ● | M100: ● | N100: ● | O100: ●
A101: M.2 Sustainted Max Power (TDP) | C101: Intel 120G and 80G SATA | D101: ● | E101: 13 | F101: 13 | G101: 13 | H101: ● | I101: 13 | J101: 13 | K101: 13 | L101: ● | M101: 13 | N101: 13 | O101: 13
C102: non-Intel M.2 | D102: ● | E102: 15 | F102: 15 | G102: 15 | H102: ● | I102: 15 | J102: 15 | K102: 15 | L102: ● | M102: 15 | N102: 15 | O102: 15
A103: M.2 Light Workload [ See note 14] | C103: Intel 120G and 80G SATA | D103: ● | E103: 13 | F103: 13 | G103: 13 | H103: ● | I103: 13 | J103: 13 | K103: 13 | L103: ● | M103: 13 | N103: 13 | O103: 13
C104: non-Intel M.2 | D104: ● | E104: 15 | F104: 15 | G104: 15 | H104: ● | I104: 15 | J104: 15 | K104: 15 | L104: ● | M104: 15 | N104: 15 | O104: 15
A105: Lewisburg | C105: LBG 0 (10w) | D105: ● | E105: ● | H105: ● | I105: ● | L105: ● | M105: ●
C106: LBG 2 (15w) | D106: ● | E106: ● | H106: ● | I106: ● | L106: ● | M106: ●
D107: ● | E107: 11 | H107: ● | I107: 11 | L107: ● | M107: 11
C108: LBG L (20W) | D108: ● | E108: 11 | H108: ● | I108: 11 | L108: ● | M108: 11
C109: LBG E (21W) | D109: 11 | E109: 11 | H109: 11 | I109: 11 | L109: 11 | M109: 11
C110: LBG M (25W) | D110: 11 | E110: 11 | H110: 11 | I110: 11 | L110: 11 | M110: 11
A114: Oppervale | C114: 9W | D114: ● | E114: ● | H114: ● | I114: ● | L114: ● | M114: ●
A122: ROC?
A128: VR?
A140: Thermal Config Matrix Fan fail mode "●"= Full Support without limitation; "4,5"(Cell with number)=Conditional support with limitation; (See notes below table) " "(Blank)=Not support; | D140: Base System SKUs: R2312 WF STANDARD AIRDUCT | H140: Base System SKUs: R2224 WF SATA / NVME 200 GB - 600 GB STANDARD AIRDUCT | L140: Base System SKUs: R2224 WF NVME 800 GB - 2.0 TB STANDARD AIRDUCT | P140: Base System SKUs: R2308 WF R2216 WF STANDARD AIRDUCT | T140: Base System SKUs: R2208 WF STANDARD AIRDUCT | X140: Xeon PHI Computing Optimized: R2308 WF R2216 WF AWFCOPRODUCT AIRDUCT | AB140: Xeon PHI Computing Optimized: R2208 WF AWFCOPRODUCT AIRDUCT
A141: ASHRAE (See note 1) | C141: Classifications | D141: 27C | E141: A2 | F141: A3 | G141: A4 | H141: 27C | I141: A2 | J141: A3 | K141: A4 | L141: 27C | M141: A2 | N141: A3 | O141: A4 | P141: 27C | Q141: A2 | R141: A3 | S141: A4 | T141: 27C | U141: A2 | V141: A3 | W141: A4 | X141: 27C | Y141: A2 | Z141: A3 | AA141: A4 | AB141: 27C | AC141: A2 | AD141: A3 | AE141: A4
C142: Max Ambient | D142: 27°C(1) | E142: 35°C | F142: 40°C | G142: 45°C | H142: 27°C(1) | I142: 35°C | J142: 40°C | K142: 45°C | L142: 27°C(1) | M142: 35°C | N142: 40°C | O142: 45°C | P142: 27°C(1) | Q142: 35°C | R142: 40°C | S142: 45°C | T142: 27°C(1) | U142: 35°C | V142: 40°C | W142: 45°C | X142: 27°C(1) | Y142: 35°C | Z142: 40°C | AA142: 45°C | AB142: 27°C(1) | AC142: 35°C | AD142: 40°C | AE142: 45°C
A143: PS (See note 2,6) | C143: 1600W AC | D143: 2, 21 | E143: 2 | H143: 2,21 | I143: 2 | L143: 2, 22 | M143: 2 | P143: 2,20 | Q143: 2, 22 | R143: 2 | S143: 2 | T143: 2, 18 | U143: 2, 19 | V143: 2, 20 | W143: 2,21 | X143: 2, 21 | Y143: 2 | Z143: 2 | AA143: 2 | AB143: 2, 20 | AC143: 2, 22 | AD143: 2 | AE143: 2
C144: 1300W AC | D144: 2, 21 | E144: 2 | H144: 2,21 | I144: 2 | L144: 2, 22 | M144: 2 | P144: 2,20 | Q144: 2, 22 | R144: 2 | S144: 2 | T144: 2, 18 | U144: 2, 19 | V144: 2, 20 | W144: 2,21 | X144: 2, 21 | Y144: 2 | Z144: 2 | AA144: 2 | AB144: 2, 20 | AC144: 2, 22 | AD144: 2 | AE144: 2
C145: 1100W AC | D145: 2 | E145: 2 | H145: 2 | I145: 2 | L145: 2 | M145: 2 | P145: 2 | Q145: 2 | R145: 2 | S145: 2 | T145: ● | U145: ● | V145: ● | W145: ● | X145: 2 | Y145: 2 | Z145: 2 | AA145: 2 | AB145: 2 | AC145: 2 | AD145: 2 | AE145: 2
A146: CPU TDP | B146: 205 W | C146: Intel® Xeon® Platinum 8280 CPU_28 | T146: ● | U146: 24 | V146: 24 | AB146: 24
C147: Intel® Xeon® Platinum 8270 CPU_26C | P147: 24 | AB147: 24
C148: Intel® Xeon® Platinum 8268 CPU_24C | P148: 24 | T148: ● | U148: 24 | V148: 24 | AB148: 24
C149: Intel Xeon Platinum 8180_28C | P149: 24 | T149: ● | U149: 3 | V149: 24 | AB149: 24
C150: Intel Xeon Platinum 8168_24C | P150: 24 | T150: ● | U150: 3 | V150: 24 | AB150: 24
B151: 200 W | C151: Intel® Xeon® Gold 6254 CPU_18C
C152: Intel Xeon Gold 6154_18C | P152: 24 | T152: ● | U152: 3 | V152: 24 | AB152: 24
B153: 173 W | C153: Intel Xeon Platinum 8176F_28C | P153: 24 | Q153: 24 | T153: ● | U153: 3 | V153: 24 | W153: 24 | AB153: 24 | AC153: 24
B154: 165 W | C154: Intel® Xeon® Platinum 8276 CPU_28C | H154: 24 | P154: 24 | Q154: 24 | T154: ● | U154: ● | V154: ● | W154: ● | AB154: 24 | AC154: 24
C155: Intel® Xeon® Platinum 8260 CPU_24C | H155: 24 | P155: 24 | Q155: 24 | T155: ● | U155: ● | V155: ● | W155: ● | AB155: 24 | AC155: 24
C156: Intel Xeon Platinum 8176 _28C | D156: 24 | H156: 24 | P156: 24 | Q156: 24 | T156: ● | U156: ● | V156: ● | W156: 24 | X156: 24 | AB156: 24 | AC156: 24
C157: Intel Xeon Platinum 8170_26C | D157: 24 | H157: 24 | P157: 24 | Q157: 24 | T157: ● | U157: ● | V157: ● | W157: 24 | X157: 24 | AB157: 24 | AC157: 24
C158: Intel Xeon Gold 6150_18C | D158: 24 | H158: 24 | P158: 24 | Q158: 24 | T158: ● | U158: ● | V158: ● | W158: 24 | X158: 24 | AB158: 24 | AC158: 24
C159: Intel Xeon Gold 6146_12C | H159: 24 | P159: 24 | Q159: 24 | T159: ● | U159: 3 | V159: 3 | W159: 24 | X159: 24 | AB159: 24 | AC159: 24
C160: Intel Xeon Platinum 8170F_26C | D160: 24 | H160: 24 | P160: 24 | Q160: 24 | T160: ● | U160: ● | V160: ● | W160: 24 | X160: 24 | AB160: 24 | AC160: 24
B161: 160 W | C161: Intel Xeon Platinum 8160F_24C | D161: 24 | H161: 24 | P161: 24 | Q161: 24 | T161: ● | U161: ● | V161: ● | W161: 24 | X161: 24 | Y161: 24 | AB161: 24 | AC161: 24
C162: Intel Xeon Gold 6148F_20C | D162: 24 | H162: 24 | P162: 24 | Q162: 24 | T162: ● | U162: ● | V162: ● | W162: 24 | X162: 24 | Y162: 24 | AB162: 24 | AC162: 24
C163: Intel Xeon Gold 6142F_16C | D163: 24 | H163: 24 | P163: 24 | Q163: 24 | T163: ● | U163: ● | V163: ● | W163: 24 | X163: 24 | Y163: 24 | AB163: 24 | AC163: 24
B164: 150 W | C164: Intel® Xeon® Gold 6252 CPU_24C | D164: 24 | H164: 24 | I164: 24 | P164: 24 | Q164: 24 | T164: ● | U164: ● | V164: ● | W164: ● | X164: 24 | AB164: 24 | AC164: 24 | AD164: 24
C165: Intel® Xeon® Gold 6248 CPU_20C | D165: 24 | H165: 24 | I165: 24 | P165: 24 | Q165: 24 | T165: ● | U165: ● | V165: ● | W165: ● | X165: 24 | AB165: 24 | AC165: 24 | AD165: 24
C166: Intel® Xeon® Gold 6240 CPU_18C | D166: 24 | H166: 24 | I166: 24 | P166: 24 | Q166: 24 | T166: ● | U166: ● | V166: ● | AB166: 24 | AC166: 24 | AD166: 24
C167: Intel® Xeon® Gold 6242 CPU_16C | D167: 24 | H167: 24 | I167: 24 | P167: 24 | Q167: 24 | T167: ● | U167: ● | V167: ● | W167: ● | X167: 24 | AB167: 24 | AC167: 24 | AD167: 24
C168: Intel® Xeon® Gold 6244 CPU_8C | H168: 24 | P168: 24 | T168: 24 | U168: 24 | V168: 24 | W168: 24 | AB168: 24 | AC168: 24
C169: Intel Xeon Platinum 8164_26C | D169: 24 | H169: 24 | I169: 24 | P169: 24 | Q169: 24 | T169: ● | U169: ● | V169: ● | W169: ● | X169: 24 | Y169: 24 | AB169: 24 | AC169: 24 | AD169: 24 | AE169: 24
C170: Intel Xeon Platinum 8160_24C | D170: 24 | H170: 24 | I170: 24 | P170: 24 | Q170: 24 | T170: ● | U170: ● | V170: ● | W170: ● | X170: 24 | Y170: 24 | AB170: 24 | AC170: 24 | AD170: 24 | AE170: 24
C171: Intel Xeon Gold 6148_20C | D171: 24 | H171: 24 | I171: 24 | P171: 24 | Q171: 24 | T171: ● | U171: ● | V171: ● | W171: ● | X171: 24 | Y171: 24 | AB171: 24 | AC171: 24 | AD171: 24 | AE171: 24
C172: Intel Xeon Gold 6136_12C | D172: 24 | H172: 24 | I172: 24 | P172: 24 | Q172: 24 | T172: ● | U172: ● | V172: ● | W172: ● | X172: 24 | Y172: 24 | AB172: 24 | AC172: 24 | AD172: 24 | AE172: 24
C173: Intel Xeon Gold 6144_8C | D173: 24 | H173: 24 | I173: 24 | P173: 24 | Q173: 24 | T173: 24 | U173: 24 | V173: 24 | W173: 24 | X173: 24 | Y173: 24 | AB173: 24 | AC173: 24 | AD173: 24 | AE173: 24
C174: Intel Xeon Platinum 8158_12C | D174: 24 | H174: 24 | I174: 24 | P174: 24 | Q174: 24 | T174: ● | U174: ● | V174: ● | W174: ● | X174: 24 | Y174: 24 | AB174: 24 | AC174: 24 | AD174: 24 | AE174: 24
C175: Intel Xeon Gold 6142_16C | D175: 24 | H175: 24 | I175: 24 | P175: 24 | Q175: 24 | T175: ● | U175: ● | V175: ● | W175: ● | X175: 24 | Y175: 24 | AB175: 24 | AC175: 24 | AD175: 24 | AE175: 24
B176: 140 W | C176: Intel Xeon Gold 6132_14C | D176: 24 | E176: 24 | H176: 24 | I176: 24 | L176: 24 | P176: 24 | Q176: 24 | R176: 24 | S176: 24 | T176: ● | U176: ● | V176: ● | W176: ● | X176: 24 | Y176: 24 | Z176: 24 | AB176: ● | AC176: 24 | AD176: 24 | AE176: 24
C177: Intel Xeon Gold 6152_22C | D177: 24 | E177: 24 | H177: 24 | I177: 24 | L177: 24 | P177: 24 | Q177: 24 | R177: 24 | S177: 24 | T177: ● | U177: ● | V177: ● | W177: ● | X177: 24 | Y177: 24 | Z177: 24 | AB177: ● | AC177: 24 | AD177: 24 | AE177: 24
C178: Intel Xeon Gold 6140_18C | D178: 24 | E178: 24 | H178: 24 | I178: 24 | L178: 24 | P178: 24 | Q178: 24 | R178: 24 | S178: 24 | T178: ● | U178: ● | V178: ● | W178: ● | X178: 24 | Y178: 24 | Z178: 24 | AB178: ● | AC178: 24 | AD178: 24 | AE178: 24
B179: 135 W | C179: Intel Xeon Gold 6138F_20C | D179: 24 | E179: 24 | H179: 24 | I179: 24 | L179: 24 | P179: ● | Q179: 24 | R179: 24 | S179: 24 | T179: ● | U179: ● | V179: ● | W179: ● | X179: 24 | Y179: 24 | Z179: 24 | AB179: ● | AC179: 24 | AD179: 24 | AE179: 24
C180: Intel Xeon Gold 6130F_16C | D180: 24 | E180: 24 | H180: 24 | I180: 24 | L180: 24 | P180: ● | Q180: 24 | R180: 24 | S180: 24 | T180: ● | U180: ● | V180: ● | W180: ● | X180: 24 | Y180: 24 | Z180: 24 | AB180: ● | AC180: 24 | AD180: 24 | AE180: 24
C181: Intel Xeon Gold 6126F_12C | D181: 24 | E181: 24 | H181: 24 | I181: 24 | L181: 24 | P181: ● | Q181: 24 | R181: 24 | S181: 24 | T181: ● | U181: ● | V181: ● | W181: ● | X181: 24 | Y181: 24 | Z181: 24 | AB181: ● | AC181: 24 | AD181: 24 | AE181: 24
B182: 130 W | C182: Intel Xeon Gold 6134_8C | D182: ● | E182: 24 | H182: ● | I182: 24 | L182: 24 | P182: ● | Q182: 24 | R182: 24 | S182: 24 | T182: ● | U182: ● | V182: ● | W182: ● | X182: 24 | Y182: 24 | Z182: 24 | AB182: ● | AC182: 24 | AD182: 24 | AE182: 24
B183: 125 W | C183: Intel® Xeon® Gold 6230 CPU_20C | D183: ● | E183: 24 | H183: ● | I183: 24 | L183: 24 | P183: ● | Q183: 24 | R183: 24 | S183: 24 | T183: ● | U183: ● | V183: ● | W183: ● | X183: ● | Y183: 24 | Z183: 24 | AB183: ● | AC183: ● | AD183: 24 | AE183: 24
C184: Intel® Xeon® Gold 5220 CPU _18C | D184: ● | E184: 24 | H184: ● | I184: 24 | L184: 24 | P184: ● | Q184: 24 | R184: 24 | S184: 24 | X184: ● | Y184: 24 | Z184: 24 | AB184: ● | AC184: ● | AD184: 24 | AE184: 24
C185: Intel® Xeon® Gold 5218 CPU_16C | D185: ● | E185: 24 | H185: ● | I185: 24 | L185: 24 | P185: ● | Q185: 24 | R185: 24 | S185: 24 | T185: ● | U185: ● | V185: ● | W185: ● | X185: ● | Y185: 24 | Z185: 24 | AB185: ● | AC185: ● | AD185: 24 | AE185: 24
C186: Intel® Xeon® Platinum 8253 CPU_16C | D186: ● | E186: 24 | H186: ● | I186: 24 | L186: 24 | P186: ● | Q186: 24 | R186: 24 | S186: 24 | T186: ● | U186: ● | V186: ● | W186: ● | X186: ● | Y186: 24 | Z186: 24 | AB186: ● | AC186: ● | AD186: 24 | AE186: 24
C187: Intel Xeon Gold 6138_20C | D187: ● | E187: 24 | H187: ● | I187: 24 | L187: 24 | P187: ● | Q187: 24 | R187: 24 | S187: 24 | T187: ● | U187: ● | V187: ● | W187: ● | X187: ● | Y187: 24 | Z187: 24 | AA187: 24 | AB187: ● | AC187: ● | AD187: 24 | AE187: 24
C188: Intel Xeon Gold 6130_16C | D188: ● | E188: 24 | H188: ● | I188: 24 | L188: 24 | P188: ● | Q188: 24 | R188: 24 | S188: 24 | T188: ● | U188: ● | V188: ● | W188: ● | X188: ● | Y188: 24 | Z188: 24 | AA188: 24 | AB188: ● | AC188: ● | AD188: 24 | AE188: 24
C189: Intel Xeon Platinum 8153_16C | D189: ● | E189: 24 | H189: ● | I189: 24 | L189: 24 | P189: ● | Q189: 24 | R189: 24 | S189: 24 | T189: ● | U189: ● | V189: ● | W189: ● | X189: ● | Y189: 24 | Z189: 24 | AA189: 24 | AB189: ● | AC189: ● | AD189: 24 | AE189: 24
C190: Intel Xeon Gold 6126_12C | D190: ● | E190: 24 | H190: ● | I190: 24 | L190: 24 | P190: ● | Q190: 24 | R190: 24 | S190: 24 | T190: ● | U190: ● | V190: ● | W190: ● | X190: ● | Y190: 24 | Z190: 24 | AA190: 24 | AB190: ● | AC190: ● | AD190: 24 | AE190: 24
B191: 115 W | C191: Intel Xeon Gold 6128_6C | D191: ● | E191: 24 | H191: ● | I191: 24 | L191: 24 | P191: ● | Q191: ● | R191: 24 | S191: 24 | T191: ● | U191: ● | V191: ● | W191: ● | X191: ● | Y191: 24 | Z191: 24 | AA191: 24 | AB191: ● | AC191: ● | AD191: 24 | AE191: 24
B192: 113 W | C192: Intel Xeon Gold 5117F_14C | D192: ● | E192: 24 | H192: ● | I192: 24 | L192: 24 | M192: 24 | P192: ● | Q192: ● | R192: 24 | S192: 24 | T192: ● | U192: ● | V192: ● | W192: ● | X192: ● | Y192: 24 | Z192: 24 | AA192: 24 | AB192: ● | AC192: ● | AD192: 24 | AE192: 24
B193: 105 W | C193: Intel Xeon Gold 5122_4C | D193: ● | E193: ● | H193: ● | I193: ● | L193: ● | M193: 24 | P193: ● | Q193: ● | R193: 24 | S193: 24 | T193: ● | U193: ● | V193: ● | W193: ● | X193: ● | Y193: 24 | Z193: 24 | AA193: 24 | AB193: ● | AC193: ● | AD193: ● | AE193: 24
C194: Intel Xeon Platinum 8156_4C | D194: ● | E194: ● | H194: ● | I194: ● | L194: ● | M194: 24 | P194: ● | Q194: ● | R194: 24 | S194: 24 | T194: ● | U194: ● | V194: ● | W194: ● | X194: ● | Y194: ● | Z194: 24 | AA194: 24 | AB194: ● | AC194: ● | AD194: ● | AE194: 24
C195: Intel Xeon Gold 5120_14C | D195: ● | E195: 3 | H195: ● | I195: ● | L195: ● | M195: 24 | P195: ● | Q195: ● | R195: 24 | S195: 24 | T195: ● | U195: ● | V195: ● | W195: ● | X195: ● | Y195: ● | Z195: 24 | AA195: 24 | AB195: ● | AC195: ● | AD195: ● | AE195: 24
C196: Intel Xeon Gold 5118_12C | D196: ● | E196: 3 | H196: ● | I196: ● | L196: ● | M196: 24 | P196: ● | Q196: ● | R196: 24 | S196: 24 | T196: ● | U196: ● | V196: ● | W196: ● | X196: ● | Y196: ● | Z196: 24 | AA196: 24 | AB196: ● | AC196: ● | AD196: ● | AE196: 24
B197: 85 W | C197: Intel® Xeon® Gold 5215 CPU_10C | D197: ● | E197: ● | H197: ● | I197: ● | L197: ● | M197: ● | P197: ● | Q197: ● | R197: ● | S197: ● | T197: ● | U197: ● | V197: ● | W197: ● | X197: ● | Y197: ● | Z197: ● | AA197: Gap, Max Tj, % Pass, Acoustic %, throttle %, Max Power Gap, Excursion Spec 6.2, 92.5, 54.35, 0, 31.29, 11.03, Pass | AB197: ● | AC197: ● | AD197: ● | AE197: ●
C198: Intel Xeon Gold 5115_10C | D198: ● | E198: ● | H198: ● | I198: ● | L198: ● | M198: ● | P198: ● | Q198: ● | R198: ● | S198: ● | T198: ● | U198: ● | V198: ● | W198: ● | X198: ● | Y198: ● | Z198: ● | AA198: 24 | AB198: ● | AC198: ● | AD198: ● | AE198: ●
C199: Intel Xeon Silver 4116_12C | D199: ● | E199: ● | H199: ● | I199: ● | L199: ● | M199: ● | P199: ● | Q199: ● | R199: ● | S199: ● | T199: ● | U199: ● | V199: ● | W199: ● | X199: ● | Y199: ● | Z199: ● | AA199: 24 | AB199: ● | AC199: ● | AD199: ● | AE199: ●
C200: Intel Xeon Silver 4114_10C | D200: ● | E200: ● | H200: ● | I200: ● | L200: ● | M200: ● | P200: ● | Q200: ● | R200: ● | S200: ● | T200: ● | U200: ● | V200: ● | W200: ● | X200: ● | Y200: ● | Z200: ● | AA200: 24 | AB200: ● | AC200: ● | AD200: ● | AE200: ●
C201: Intel Xeon Silver 4110_8C | D201: ● | E201: ● | H201: ● | I201: ● | L201: ● | M201: ● | P201: ● | Q201: ● | R201: ● | S201: ● | T201: ● | U201: ● | V201: ● | W201: ● | X201: ● | Y201: ● | Z201: ● | AA201: 24 | AB201: ● | AC201: ● | AD201: ● | AE201: ●
C202: Intel Xeon Silver 4108 _8C | D202: ● | E202: ● | H202: ● | I202: ● | L202: ● | M202: ● | P202: ● | Q202: ● | R202: ● | S202: ● | T202: ● | U202: ● | V202: ● | W202: ● | X202: ● | Y202: ● | Z202: ● | AA202: 24 | AB202: ● | AC202: ● | AD202: ● | AE202: ●
C203: Intel Xeon Bronze 3106 _8C | D203: ● | E203: ● | H203: ● | I203: ● | L203: ● | M203: ● | P203: ● | Q203: ● | R203: ● | S203: ● | T203: ● | U203: ● | V203: ● | W203: ● | X203: ● | Y203: ● | Z203: ● | AA203: 24 | AB203: ● | AC203: ● | AD203: ● | AE203: ●
C204: Intel Xeon Bronze 3104_6C | D204: ● | E204: ● | H204: ● | I204: ● | L204: ● | M204: ● | P204: ● | Q204: ● | R204: ● | S204: ● | T204: ● | U204: ● | V204: ● | W204: ● | X204: ● | Y204: ● | Z204: ● | AA204: 24 | AB204: ● | AC204: ● | AD204: ● | AE204: ●
C205: Intel Xeon Silver 4112_4C | D205: ● | E205: ● | H205: ● | I205: ● | L205: ● | M205: ● | P205: ● | Q205: ● | R205: ● | S205: ● | T205: ● | U205: ● | V205: ● | W205: ● | X205: ● | Y205: ● | Z205: ● | AA205: 24 | AB205: ● | AC205: ● | AD205: ● | AE205: ●
A206: Memory Type | C206: AEP SDP 128 GB | D206: ● | E206: 3 | H206: ● | I206: 3 | L206: ● | M206: 3 | P206: ● | Q206: ● | R206: 3 | S206: 3 | T206: ● | U206: ● | V206: ● | W206: 3 | X206: ● | Y206: ● | Z206: 3 | AA206: 3 | AB206: ● | AC206: ● | AD206: 3 | AE206: 3
C207: AEP DDQ 256 GB | D207: ● | E207: 3 | H207: ● | I207: 3 | L207: ● | M207: 3 | P207: ● | Q207: ● | R207: 3 | S207: 3 | T207: ● | U207: ● | V207: ● | W207: 3 | X207: ● | Y207: ● | Z207: 3 | AA207: 3 | AB207: ● | AC207: ● | AD207: 3 | AE207: 3
C208: AEP QDP 512 GB | D208: ● | E208: 3 | H208: ● | I208: 3 | L208: ● | M208: 3 | P208: ● | Q208: 3 | R208: 3 | S208: 3 | T208: ● | U208: ● | V208: 3 | W208: 3 | X208: ● | Y208: 3 | Z208: 3 | AA208: 3 | AB208: ● | AC208: 3 | AD208: 3 | AE208: 3
C209: RDIMM-2Rx8,1Rx4 | D209: ● | E209: ● | H209: ● | I209: ● | L209: ● | M209: ● | P209: ● | Q209: ● | R209: ● | S209: ● | T209: ● | U209: ● | V209: ● | W209: ● | X209: ● | Y209: ● | Z209: ● | AA209: ● | AB209: ● | AC209: ● | AD209: ● | AE209: ●
C210: RDIMM-DRx4 | D210: ● | E210: ● | H210: ● | I210: ● | L210: ● | M210: ● | P210: ● | Q210: ● | R210: ● | S210: ● | T210: ● | U210: ● | V210: ● | W210: ● | X210: ● | Y210: ● | Z210: ● | AA210: ● | AB210: ● | AC210: ● | AD210: ● | AE210: ●
C211: LRDIMM-QRx4 DDP | D211: 3 | E211: 3 | H211: 3 | I211: 3 | L211: 3 | M211: 3 | P211: ● | Q211: 3 | R211: 3 | S211: 3 | T211: ● | U211: ● | V211: 3 | W211: 3 | X211: ● | Y211: 3 | Z211: 3 | AA211: 3 | AB211: ● | AC211: ● | AD211: 3 | AE211: 3
A212: Add-in Cards (See note 5) | C212: Riser #1 - Bottom Slot (1U riser and 2U riser) | D212: ● | E212: ● | H212: ● | I212: ● | L212: ● | M212: ● | P212: ● | Q212: ● | R212: ● | S212: ● | T212: ● | U212: ● | V212: ● | W212: ● | X212: ● | Y212: ● | Z212: 5 | AA212: 5 | AB212: ● | AC212: ● | AD212: 5 | AE212: 5
C213: Riser #1 - Middle Slot (2U riser) | D213: ● | E213: 5 | H213: ● | I213: 5 | L213: ● | M213: 5 | P213: ● | Q213: 5 | R213: 5 | S213: 5 | T213: ● | U213: ● | V213: ● | W213: ●
C214: Riser #1 - Top Slot (2U riser) | D214: ● | E214: 5 | H214: ● | I214: 5 | L214: ● | M214: 5 | P214: ● | Q214: 5 | R214: 5 | S214: 5 | T214: ● | U214: ● | V214: ● | W214: ● | X214: 5 | Y214: 5 | Z214: 5 | AA214: 5 | AB214: 5 | AC214: 5 | AD214: 5 | AE214: 5
C215: Riser #2 - Bottom Slot (1U riser and 2U riser) | D215: ● | E215: ● | H215: ● | I215: ● | L215: ● | M215: ● | P215: ● | Q215: ● | R215: ● | S215: ● | T215: ● | U215: ● | V215: ● | W215: ● | X215: ● | Y215: ● | Z215: ● | AA215: ● | AB215: ● | AC215: ● | AD215: ● | AE215: ●
C216: Riser #2 - Middle Slot (2U riser) | D216: ● | E216: 5 | H216: ● | I216: 5 | L216: ● | M216: 5 | P216: ● | Q216: 5 | R216: 5 | S216: 5 | T216: ● | U216: ● | V216: ● | W216: ●
C217: Riser #2 - Top Slot (2U riser) | D217: ● | E217: 5 | H217: ● | I217: 5 | L217: ● | M217: 5 | P217: ● | Q217: 5 | R217: 5 | S217: 5 | T217: ● | U217: ● | V217: ● | W217: ● | X217: 5 | Y217: 5 | Z217: 5 | AA217: 5 | AB217: 5 | AC217: 5 | AD217: 5 | AE217: 5
A218: 3rd PCI Riser | C218: Riser #3 - Bottom Slot | D218: ● | E218: 5 | H218: ● | I218: 5 | L218: ● | M218: 5 | P218: ● | Q218: 5 | R218: 5 | S218: 5 | T218: ● | U218: ● | V218: ● | W218: 5 | X218: 5 | Y218: 5 | Z218: 5 | AA218: 5 | AB218: 5 | AC218: 5 | AD218: 5 | AE218: 5
C219: Riser #3 - Top Slot | D219: ● | E219: 5 | H219: ● | I219: 5 | L219: ● | M219: 5 | P219: ● | Q219: 5 | R219: 5 | S219: 5 | T219: ● | U219: ● | V219: ● | W219: 5 | X219: 5 | Y219: 5 | Z219: 5 | AA219: 5 | AB219: 5 | AC219: 5 | AD219: 5 | AE219: 5
A220: SAS and OCP Modules (See Note 4) | C220: Intel® Integrated RAID Modules (Mezzanine cards) | D220: ● | E220: ● | H220: ● | I220: ● | L220: ● | M220: ● | P220: ● | Q220: ● | R220: ● | S220: ● | T220: ● | U220: ● | V220: ● | W220: ● | X220: ● | Y220: ● | Z220: ● | AA220: ● | AB220: ● | AC220: ● | AD220: ● | AE220: ●
C221: 16 port tri mode mezzanine | D221: ● | E221: 4 | H221: ● | I221: 4 | L221: ● | M221: 4 | P221: ● | Q221: ● | R221: ● | S221: ● | T221: ● | U221: ● | V221: ● | W221: ● | X221: ● | Y221: ● | AB221: ● | AC221: ●
C222: IFT carrier AIC | D222: 27 | E222: 27 | H222: 27 | I222: 27 | L222: 27 | M222: 27 | P222: 27 | Q222: 27 | R222: 27 | S222: 27 | T222: 27 | U222: 27 | V222: 27 | W222: 27 | X222: 27 | Y222: 27 | Z222: 27 | AA222: 27 | AB222: 27 | AC222: 27 | AD222: 27 | AE222: 27
C223: IFT carrier Mezzanine | D223: 27 | E223: 27 | H223: 27 | I223: 27 | L223: 27 | M223: 27 | P223: 27 | Q223: 27 | R223: 27 | S223: 27 | T223: 27 | U223: 27 | V223: 27 | W223: 27 | X223: 27 | Y223: 27 | Z223: 27 | AA223: 27 | AB223: 27 | AC223: 27 | AD223: 27 | AE223: 27
C224: Dual 10GBase-T Taylor Canal | D224: ● | E224: ● | H224: ● | I224: ● | L224: ● | M224: ● | P224: ● | Q224: ● | R224: ● | S224: ● | T224: ● | U224: ● | V224: ● | W224: ● | X224: ● | Y224: ● | Z224: ● | AA224: ● | AB224: ● | AC224: ● | AD224: ● | AE224: ●
C225: Dual SFP+ Cascade Canal | D225: ● | E225: ● | H225: ● | I225: ● | L225: ● | M225: ● | P225: ● | Q225: ● | R225: ● | S225: ● | T225: ● | U225: ● | V225: ● | W225: ● | X225: ● | Y225: ● | Z225: 27 | AA225: 27 | AB225: ● | AC225: ● | AD225: 27 | AE225: 27
C226: Quad SFP+ Cascade Canal | D226: ● | E226: ● | H226: ● | I226: ● | L226: ● | M226: ● | P226: ● | Q226: ● | R226: ● | S226: ● | T226: ● | U226: ● | V226: ● | W226: ● | X226: ● | Y226: ● | Z226: 27 | AA226: 27 | AB226: ● | AC226: ● | AD226: 27 | AE226: 27
C227: 1GBase-T Quad Main Canal | D227: ● | E227: ● | H227: ● | I227: ● | L227: ● | M227: ● | P227: ● | Q227: ● | R227: ● | S227: ● | T227: ● | U227: ● | V227: ● | W227: ● | X227: ● | Y227: ● | Z227: ● | AA227: ● | AB227: ● | AC227: ● | AD227: ● | AE227: ●
A228: Battery Backup (See note 9) | C228: BBU (rated to 45C) | H228: ● | L228: ● | P228: ● | Q228: ● | R228: ● | S228: ● | T228: ● | U228: ● | V228: ● | W228: ● | X228: ● | Y228: ● | AB228: ● | AC228: ●
C229: Supercap (rated to 55C) | D229: ● | E229: ● | H229: ● | I229: ● | L229: ● | M229: ● | P229: ● | Q229: ● | R229: ● | S229: ● | T229: ● | U229: ● | V229: ● | W229: ● | X229: ● | Y229: ● | AB229: ● | AC229: ●
C230: Cache Offload Module (rated to 55C) | D230: ● | E230: ● | H230: ● | I230: ● | L230: ● | M230: ● | P230: ● | Q230: ● | R230: ● | S230: ● | T230: ● | U230: ● | V230: ● | W230: ● | X230: ● | Y230: ● | AB230: ● | AC230: ●
A231: Internal SSD | C231: Rated to 60C | H231: ● | L231: ● | P231: ● | T231: ● | U231: ● | V231: ● | W231: ● | X231: ● | Y231: ● | AB231: ● | AC231: ●
... 23 more rows

Sheet Summary
A1: Power Budget | B1: =CONCATENATE(INDEX(Chassis!$L$3:$L$14,'Intel Chassis'!$B3)," / ",INDEX(Serverboard!A$2:A$14,'Serverboard Config'!$B5) ) -> (Select a Chassis) / (Select Serverboard)
A2: Chassis/ Power Supply / Cooling: | B2: =INDEX(Chassis!A$3:A$14,'Intel Chassis'!$B3) -> (Select Chassis)
A3: Serverboard: | B3: =INDEX(Serverboard!A$2:A$14,'Serverboard Config'!$B5) -> (Select Serverboard)
A4: System Totals | B4: +12V (amps) | C4: 12VSB (amps) | D4: Total System Watts
A5: =CONCATENATE("Processors - Qty ",'Serverboard Config'!C4, ":") -> Processors - Qty 1: | B5: =SUM('Serverboard Config'!F3) -> 0 | C5: =SUM('Serverboard Config'!G3) -> 0 | D5: =SUM('Serverboard Config'!H3) -> 0
A6: =CONCATENATE("Modules + PCI Cards - Qty ",('Serverboard Config'!B10>1) + ('Serverboard Config'!B11>1) + ('Serverboard Config'!B12>1) + ('Serverboard Config'!B13>1) +('Serverboard Config'!B14>1)+('Serverboard Config'!B15>1)+('Serverboard Config'!B16>1)+('Serverboard Config'!B17>1)+('Serverboard Config'!B20>1)+('Serverboard Config'!B21>1),":") -> Modules + PCI Cards - Qty 0: | B6: =SUM('Serverboard Config'!F10:F21) -> 0 | C6: =SUM('Serverboard Config'!G10:G21) -> 0 | D6: =SUM('Serverboard Config'!H10:H21) -> 0
A7: =CONCATENATE("HDD/SSD - Qty ",'Intel Chassis'!C4+'Intel Chassis'!C5+'Intel Chassis'!C6,":") -> HDD/SSD - Qty 0: | B7: =SUM('Intel Chassis'!G4:G6) -> 0 | C7: 0 | D7: =SUM('Intel Chassis'!I4:I6) -> 0
A8: Serverboard & Memory: | B8: =SUM('Serverboard Config'!F5:F8) -> 0 | C8: =SUM('Serverboard Config'!G5:G6) -> 0 | D8: =SUM('Serverboard Config'!H5:H8) -> 0
A9: Chassis & Peripherals: | B9: =_Sys12 - B7 -> 0 | C9: ='Intel Chassis'!H15 -> 0 | D9: =3.3*Sys3.3+5*_Sys5+ 12*_Sys12-D7 -> 0
A10: System Totals: | B10: =SUM(B5:B9) -> 0 | C10: =SUM(C5:C9) -> 0 | D10: =SUM(D5:D9) -> 0
A11: =TEXT(INDEX(Summary!H19:H22,Summary!B19),"###") & TEXT(INDEX(Summary!I19:I22,Summary!B19),"###") &" PS DC Output Limits:" -> 220VAC PS DC Output Limits: | B11: =INDEX(Chassis!B$3:B$14,'Intel Chassis'!$B3) -> 0 | C11: =INDEX(Chassis!C$3:C$14,'Intel Chassis'!$B3) -> 0 | D11: =INDEX(Chassis!D$3:D$14,'Intel Chassis'!$B3) -> 0 | E11: <-- These limits may change based on inlet voltage
A12: CLST Allowance | B12: ='Serverboard Config'!F26 -> 0 | D12: ='Serverboard Config'!H26 -> 0
A13: Total System Limits | B13: =B12+PS1_12 -> 0 | C13: =C12+PS1_5VSB -> 0 | D13: =D12+ps1CombLim -> 0
A14: Margins to Limit: | B14: =B13-B10 -> 0 | C14: =C13-C10 -> 0 | D14: =D13-PowerTotal -> 0 | E14: =IF((OR(B14<0,C14<0)),"<-- Limits Exceeded!","<--System Margins") -> <--System Margins
A15: Negative margins show configuration exceeds a specified limit. | D15: =(D11-D10)/D11 ->  | E15: <-- % margin to PS rating
A18: AC inlet power estimate (below)
A19: Input Voltage: | B19: 1 | C19: (Volts) | H19: 220 | I19: VAC
A20: Estimated Inlet Power: | B20: =IF(INDEX(Chassis!$H$3:$K$14,'Intel Chassis'!$B3,B19)="na","na",PowerTotal/ (INDEX(Chassis!$H$3:$K$14,'Intel Chassis'!$B3,B19)+0.001)) -> 0 | C20: (Watts) | D20: Calculation is blank if voltage does not match PS type | H20: 115 | I20: VAC
A21: Estimated Inlet Current: | B21: =IF(B20="na","na",B20/ABS(INDEX(H19:H22,B19))) -> 0 | C21: (Amps) | D21: Calculation is blank if voltage does not match PS type | H21: -48 | I21: VDC
A22: Estimated Thermal Dissipation: | B22: =IF(B20="na","na",B20*3.41) -> 0 | C22: (BTU/Hr) | D22: Calculation is blank if voltage does not match PS type | H22: -60 | I22: VDC
A23: Note: Estimates are most accurate at max loading.
A26: If your desired configuration exceeds the power supply limits, two power supplies are required. The two power supplies will operate in a current sharing mode
A27: to deliver the additional power needed for your configuration. Furthermore, the two power supplies may need to be sourced from separate AC circuits in order to not
A28: exceed maximum AC outlet current. Exceeding maximum AC outlet current may cause a circuit breaker to trip.
A30: For A3/A4 individual PS selection
A31: 1) For dual power supply configuration, power budget must fit within single power supply rated load and be installed in dual configuration, or
A32: 2) For single power supply configuration, power budget must be sized with 30% margin to single power supply rated load.
A34: =CONCATENATE("Revision: ",Revision!B1) -> Revision: 2 | B34: =Revision!A1 -> 2018-09-12

Sheet Intel Chassis
A1: Power Budget | B1: =CONCATENATE(INDEX(Chassis!$L$3:$L$14,B3), " System Configuration") -> (Select a Chassis) System Configuration | K1: HSBP VRM Efficiency
A2: System Feature | B2: Description | C2: Qty | E2: +3.3V (amps) | F2: +5V (amps) | G2: +12V (amps) | H2: 12V stby (amps) | I2: Power (watts) | K2: =INDEX(Chassis!$G$3:$G$14,B3) -> 1
A3: Chassis: | B3: 1 | G3: =INDEX(Chassis!$E$3:$E$14,B3)+IF(INDEX(Chassis!$F$3:$F$14,B3)="Y",(INDEX(Processors!C2:C89,'Serverboard Config'!B3)*'Serverboard Config'!C4),0) -> 0 | I3: =G3*12+H3*12 -> 0
A4: 1st HDD/SSD Type: | B4: 1 | C4: 0 | F4: =INDEX(HardDrive!$C$2:$C$18,B4) *C4 * 1 -> 0 | G4: =(INDEX(HardDrive!$D$2:$D$18,B4)*C4+((F4*5)/12)/$K$2) *1 -> 0 | I4: 0 | J4: =IF($C$4+$C$5+$C$6>(INDEX(HardDrive!$F$21:$F$34*$C$7,'Intel Chassis'!$B$7))+(INDEX(HardDrive!$F$21:$F$34*$C$8, $B$8))+(INDEX(HardDrive!$F21:$F$34*$C$9, $B$9))," <-- Max Supported HDD Count Exceeded!"," ") -> 
A5: 2nd HDD/SSD Type: | B5: 1 | C5: 0 | F5: =INDEX(HardDrive!$C$2:$C$18,B5) *C5 *1 -> 0 | G5: =(INDEX(HardDrive!$D$2:$D$18,B5) *C5+((F5*5)/12)/$K$2) *1 -> 0 | I5: 0 | J5: =IF($C$4+$C$5+$C$6>(INDEX(HardDrive!$F$21:$F$34*$C$7,'Intel Chassis'!$B$7))+(INDEX(HardDrive!$F$21:$F$34*$C$8, $B$8))+(INDEX(HardDrive!$F22:$F$34*$C$9, $B$9))," <-- Max Supported HDD Count Exceeded!"," ") -> 
A6: 3rd HDD/SSD Type: | B6: 1 | C6: 0 | F6: =INDEX(HardDrive!$C$2:$C$18,B6) *C6 *1 -> 0 | G6: =(INDEX(HardDrive!$D$2:$D$18,B6) *C6+((F6*5)/12)/$K$2) *1 -> 0 | I6: 0 | J6: =IF($C$4+$C$5+$C$6>(INDEX(HardDrive!$F$21:$F$34*$C$7,'Intel Chassis'!$B$7))+(INDEX(HardDrive!$F$21:$F$34*$C$8, $B$8))+(INDEX(HardDrive!$F23:$F$34*$C$9, $B$9))," <-- Max Supported HDD Count Exceeded!"," ") -> 
A7: 1st Backplane Type: | B7: 1 | C7: 0 | G7: =(INDEX(HardDrive!$D$21:$D$34,B7) *C7+((F7*5)/12)/$K$2) *1 -> 0 | I7: 0
A8: 2nd Backplane Type: | B8: 1 | C8: 0 | G8: =(INDEX(HardDrive!$D$21:$D$34,B8) *C8+((F8*5)/12)/$K$2) *1 -> 0 | I8: =G8*12+H8*12 -> 0
A9: Rear Backplane: | B9: 1 | C9: 0 | G9: =(INDEX(HardDrive!$B$37:$B$39,B9) *C9+((F9*5)/12)/$K$2) *1 -> 0 | I9: =G9*12+H9*12 -> 0
A10: Midplane Expander: | B10: 1 | C10: 1 | G10: =(INDEX(Peripherals!$D$17:$D$22,B10) *C10) *1 -> 0 | I10: 0
A11: USB: | B11: Number of Devices (100mA/device) | C11: 0 | F11: =0.1*C11 -> 0 | G11: =((F11*5)/12)/_5vVRM -> 0 | I11: 0
A12: USB 3.0: | B12: Number of Devices (150mA/device) | C12: 0 | F12: =0.15*C12 -> 0 | G12: =((F12*5)/12)/_5vVRM -> 0 | I12: =G12*12+H12*12 -> 0
C13: 0 | H13: =(0.171*3.3)/12/_stbyVRM*C13 -> 0 | I13: 0
A14: Slim-line Bay: | B14: 1 | C14: 1 | F14: =INDEX(Peripherals!C$3:C$7,$B14) *C14 -> 0 | G14: =(INDEX(Peripherals!$D$3:$D$7,B14)*C14+((F14*5)/12)/_5vVRM) *1 -> 0 | I14: 0
E15: =SUM(E3:E14) -> 0 | G15: =SUM(G3:G14) -> 0 | H15: =SUM(H3:H14) -> 0 | I15: =E15*3.3+F15*5+G15*12 -> 0
B16: SubTotal Chassis Power (Watts): | G16: =G15*12 -> 0 | H16: =H15*5 -> 0 | I16: =SUM(E16:G16) -> 0
B17: Total System usage: | G17: =Summary!B10 -> 0 | H17: =Summary!C10 -> 0 | I17: =Summary!D10 -> 0
B18: =TEXT(INDEX(Summary!H19:H22,Summary!B19),"###") & TEXT(INDEX(Summary!I19:I22,Summary!B19),"###") &" PS DC Output Limits:" -> 220VAC PS DC Output Limits: | G18: =PS1_12 -> 0 | H18: =PS1_5VSB -> 0 | I18: =ps1CombLim -> 0 | J18: <-- These limits may change based on inlet voltage
B19: CLST Allowance: | G19: ='Serverboard Config'!F26 -> 0 | I19: ='Serverboard Config'!H26 -> 0
B20: Total System Limits: | G20: ='Serverboard Config'!F27 -> 0 | H20: =H18 -> 0 | I20: ='Serverboard Config'!H27 -> 0
B21: Margins compared to Limits: | G21: =G20-G17 -> 0 | H21: 0 | I21: =I20-I17 -> 0 | J21: =IF(OR(G21<0,H21<0,I21<0),"<-- Limits Exceeded!","<--System Margins") -> <--System Margins
I22: =(I18-I17)/I18 ->  | J22: <-- % margin to PS rating

Sheet Serverboard Config
A1: Power Budget | B1: =CONCATENATE(INDEX(Serverboard!A$2:A$14,$B5)," Configuration") -> (Select Serverboard) Configuration | J1: CPU VRM Efficiency | K1: Mem VR Efficiency | L1: 3.3v VRM Efficiency | M1: 5v VRM Efficiency | N1: 3.3 Stby VR Efficiency
A2: Serverboard Feature | B2: Description | C2: Qty | D2: +3.3V (amps) | E2: +5V (amps) | F2: +12V (amps) | G2: 12V stby (amps) | H2: Power (watts) | J2: =INDEX(Serverboard!E$2:E$12,$B5) -> 1 | K2: =INDEX(Serverboard!F$2:F$12,$B5) -> 1 | L2: =INDEX(Serverboard!G$2:G$12,$B5) -> 1 | M2: =INDEX(Serverboard!H$2:H$12,$B5) -> 1 | N2: =INDEX(Serverboard!I$2:I$12,$B5) -> 1 | O2: <--Hide these columns
A3: Processors: | B3: 1 | F3: =C4*INDEX(Processors!B$2:B$89,$B3)/12/VRMefficiency*0.9 -> 0 | H3: =F3*12+E3*5 -> 0
B4: Quantity: | C4: 1
A5: Serverboard: | B5: 1 | F5: =INDEX(Serverboard!B$2:B$14,$B5) *1 -> 0 | G5: =INDEX(Serverboard!C$2:C$14,$B5) *1 -> 0 | H5: =INDEX(Serverboard!D$2:D$14,$B5) *1 -> 0 | Q5: DCPMM Linked Cells
A6: Memory: | B6: 1 | C6: =X12+1 -> 1 | F6: =IFERROR(IF(C6=1,0,(((HLOOKUP(INDEX(Memory!A32:A45,$C6),Memory!B5:N22,B6+2,FALSE))/12/_MemVR*0.9))+(X9/12)),"0.00") -> 0 | H6: =D6*3.3+E6*5+F6*12+G6*12 -> 0 | I6: =IFERROR(IF(C6=1,"",IF(HLOOKUP(INDEX(Memory!A32:A45,$C6),Memory!B5:N22,B6+2,FALSE)="na","<-- unsupported DIMM config",""))," ") ->  | Q6: 0 | R6: <-Dimm QTY
A7: Memory Frequency:
A8: Intel® DCPMM: | F8: =IFERROR((((Q6*Q8)/12)/K2)*0.9,0) -> 0 | H8: =F8*12 -> 0 | I8: =IFERROR(IF(OR((S8<Q9),(S8+Q9>24)),"<-- Unsupported Memory and DCPMM Configuration"," ")," ") ->  | Q8: 0 | R8: <-Dimm PWR | S8: =INDEX(Memory!A32:A45,$C6) -> 0
B9: Selected Power (Watts): | Q9: =VALUE(Q6) -> 0 | X9: =X10*X11 -> 0
A10: PCI Card #1: | B10: 1 | D10: =INDEX(PCI!B$3:B$21,$B10) -> 0 | E10: =INDEX(PCI!C$3:C$21,$B10) -> 0 | F10: =INDEX(PCI!D$3:D$21,$B10)+((D10*3.3)/12)/$L$2+((E10*5)/12)/$M$2 -> 0 | G10: =((INDEX(PCI!$E$3:$E$21,$B10)*3.3)+(INDEX(PCI!$F$3:$F$21,$B10))*5)/12/_stbyVRM -> 0 | H10: =F10*12+G10*12 -> 0 | X10: 0
A11: PCI Card #2: | B11: 1 | D11: =INDEX(PCI!B$3:B$21,$B11) -> 0 | E11: =INDEX(PCI!C$3:C$21,$B11) -> 0 | F11: =INDEX(PCI!D$3:D$21,$B11)+((D11*3.3)/12)/$L$2+((E11*5)/12)/$M$2 -> 0 | G11: =((INDEX(PCI!$E$3:$E$21,$B11)*3.3)+(INDEX(PCI!$F$3:$F$21,$B11))*5)/12/_stbyVRM -> 0 | H11: 0 | X11: 0.5
A12: PCI Card #3: | B12: 1 | D12: =INDEX(PCI!B$3:B$21,$B12) -> 0 | E12: =INDEX(PCI!C$3:C$21,$B12) -> 0 | F12: =INDEX(PCI!D$3:D$21,$B12)+((D12*3.3)/12)/$L$2+((E12*5)/12)/$M$2 -> 0 | G12: =((INDEX(PCI!$E$3:$E$21,$B12)*3.3)+(INDEX(PCI!$F$3:$F$21,$B12))*5)/12/_stbyVRM -> 0 | H12: 0 | X12: 0
A13: PCI Card #4: | B13: 1 | D13: =INDEX(PCI!B$3:B$21,$B13) -> 0 | E13: =INDEX(PCI!C$3:C$21,$B13) -> 0 | F13: =INDEX(PCI!D$3:D$21,$B13)+((D13*3.3)/12)/$L$2+((E13*5)/12)/$M$2 -> 0 | G13: =((INDEX(PCI!$E$3:$E$21,$B13)*3.3)+(INDEX(PCI!$F$3:$F$21,$B13))*5)/12/_stbyVRM -> 0 | H13: 0
A14: PCI Card #5: | B14: 1 | D14: =INDEX(PCI!B$3:B$21,$B14) -> 0 | E14: =INDEX(PCI!C$3:C$21,$B14) -> 0 | F14: =INDEX(PCI!D$3:D$21,$B14)+((D14*3.3)/12)/$L$2+((E14*5)/12)/$M$2 -> 0 | G14: =((INDEX(PCI!$E$3:$E$21,$B14)*3.3)+(INDEX(PCI!$F$3:$F$21,$B14))*5)/12/_stbyVRM -> 0 | H14: 0
A15: PCI Card #6: | B15: 1 | D15: =INDEX(PCI!B$3:B$21,$B15) -> 0 | E15: =INDEX(PCI!C$3:C$21,$B15) -> 0 | F15: =INDEX(PCI!D$3:D$21,$B15)+((D15*3.3)/12)/$L$2+((E15*5)/12)/$M$2 -> 0 | G15: =((INDEX(PCI!$E$3:$E$21,$B15)*3.3)+(INDEX(PCI!$F$3:$F$21,$B15))*5)/12/_stbyVRM -> 0 | H15: 0
A16: LP PCI Card #7: | B16: 1 | D16: =INDEX(PCI!B$3:B$21,$B16) -> 0 | E16: =INDEX(PCI!C$3:C$21,$B16) -> 0 | F16: =INDEX(PCI!D$3:D$21,$B16)+((D16*3.3)/12)/$L$2+((E16*5)/12)/$M$2 -> 0 | G16: =((INDEX(PCI!$E$3:$E$21,$B16)*3.3)+(INDEX(PCI!$F$3:$F$21,$B16))*5)/12/_stbyVRM -> 0 | H16: =F16*12+G16*12 -> 0
A17: LP PCI Card #8: | B17: 1 | D17: =INDEX(PCI!B$3:B$21,$B17) -> 0 | E17: =INDEX(PCI!C$3:C$21,$B17) -> 0 | F17: =INDEX(PCI!D$3:D$21,$B17)+((D17*3.3)/12)/$L$2+((E17*5)/12)/$M$2 -> 0 | G17: =((INDEX(PCI!$E$3:$E$21,$B17)*3.3)+(INDEX(PCI!$F$3:$F$21,$B17))*5)/12/_stbyVRM -> 0 | H17: 0
A18: M.2 SSD Slot 0: | B18: 1 | D18: =INDEX(PCI!B$56:B$59,$B18) -> 0 | E18: =E19 -> 0 | F18: =INDEX(PCI!D$56:D$59,$B18)+((D18*3.3)/12)/$L$2+((E18*5)/12)/$M$2 -> 0 | G18: =((INDEX(PCI!E56:E59,$B18)*3.3)+(INDEX(PCI!F56:F59,$B18))*5)/12/_stbyVRM -> 0 | H18: 0
A19: M.2 SSD Slot 1: | B19: 1 | D19: =INDEX(PCI!B$56:B$59,$B19) -> 0 | E19: =INDEX(PCI!C$56:C$59,$B19) -> 0 | F19: =INDEX(PCI!D$56:D$59,$B19)+((D19*3.3)/12)/$L$2+((E19*5)/12)/$M$2 -> 0 | G19: =((INDEX(PCI!E56:E59,$B19)*3.3)+(INDEX(PCI!F56:F59,$B19))*5)/12/_stbyVRM -> 0 | H19: 0
A20: SAS Mezzanine: | B20: 1 | D20: =INDEX(PCI!B$24:B$34,$B20) -> 0 | E20: =INDEX(PCI!C$24:C$34,$B20) -> 0 | F20: =INDEX(PCI!D$24:D$34,$B20)+((D20*3.3)/12)/$L$2+((E20*5)/12)/$M$2 -> 0 | G20: =((INDEX(PCI!E24:E34,$B20)*3.3)+(INDEX(PCI!F24:F34,$B20))*5)/12/_stbyVRM -> 0 | H20: 0
A21: OCP Module: | B21: 1 | D21: =INDEX(PCI!B$45:B$53,$B21) -> 0 | E21: =INDEX(PCI!C$45:C$53,$B21) -> 0 | F21: =INDEX(PCI!D$45:D$53,$B21)+((D21*3.3)/12)/$L$2+((E21*5)/12)/$M$2 -> 0 | G21: =((INDEX(PCI!E45:E53,$B21)*3.3)+(INDEX(PCI!F45:F53,$B21))*5)/12/_stbyVRM -> 0 | H21: 0
B22: SubTotals: | F22: =SUM(F3:F21) -> 0 | G22: =SUM(G3:G21) -> 0 | H22: =SUM(H3:H21) -> 0
B23: SubTotal Serverboard Power (Watts): | F23: =(F22)*12 -> 0 | G23: =(G22)*5 -> 0 | H23: =SUM(D23:G23) -> 0
B24: Total System usage: | F24: =Summary!B10 -> 0 | G24: =Summary!C10 -> 0 | H24: =Summary!D10 -> 0
B25: =TEXT(INDEX(Summary!H19:H22,Summary!B19),"###") & TEXT(INDEX(Summary!I19:I22,Summary!B19),"###") &" PS DC Output Limits:" -> 220VAC PS DC Output Limits: | F25: =PS1_12 -> 0 | G25: =PS1_5VSB -> 0 | H25: =ps1CombLim -> 0 | I25: <-- These limits may change based on inlet voltage
B26: CLST Allowance: | F26: =F3*25%+F6*20% -> 0 | H26: =H3*25%+H6*20% -> 0
B27: Total System Limits: | F27: =F26+F25 -> 0 | G27: =G26+G25 -> 0 | H27: =H26+H25 -> 0
C28: Margin compared to Limits: | F28: =F27-F24 -> 0 | G28: =G27-G24 -> 0 | H28: =H27-H24 -> 0 | I28: =IF(OR(F28<0,G28<0,H28<0),"<-- Limits Exceeded!","<--System Margins") -> <--System Margins
H29: =IFERROR((H25-H24)/H25,0) -> 0 | I29: <-- % margin to PS rating
A35: CPU = 25% of TDP
A36: Memory = 10% Bandwidth

Sheet Serverboard (hidden)
A1: Serverboard | B1: 12 | C1: 12VSB | D1: Watts | E1: CPU VR Eff% | F1: Mem VR Eff% | G1: 5v VR Eff% | H1: 3v VR Eff% | I1: Stby/Aux Eff%
A2: (Select Serverboard) | E2: 1 | F2: 1 | G2: 1 | H2: 1 | I2: 1
A3: Intel® Server Board S2600WFT | B3: 4.7 | C3: 0.19 | D3: =B3*12+C3*12 -> 58.68 | E3: 0.88 | F3: 0.88 | G3: 0.85 | H3: 0.9 | I3: 0.87
A4: Intel® Server Board S2600WFQ | B4: 4.7 | C4: 0.19 | D4: =B4*12+C4*12 -> 58.68 | E4: 0.88 | F4: 0.88 | G4: 0.85 | H4: 0.9 | I4: 0.87
A5: Intel® Server Board S2600WF0 | B5: 4.7 | C5: 0.19 | D5: =B5*12+C5*12 -> 58.68 | E5: 0.88 | F5: 0.88 | G5: 0.85 | H5: 0.9 | I5: 0.87
A6: Intel® Server Board S2600WFS | B6: 4.7 | C6: 0.19 | D6: 58.68 | E6: 0.88 | F6: 0.88 | G6: 0.85 | H6: 0.9 | I6: 0.87
A7: Intel® Server Board S2600WFTF | B7: 4.7 | C7: 0.19 | D7: =B7*12+C7*12 -> 58.68 | E7: 0.88 | F7: 0.88 | G7: 0.85 | H7: 0.9 | I7: 0.87
D8: 0 | E8: 0.8 | F8: 0.8 | G8: 0.8 | H8: 0.8 | I8: 0.8 | J8: <-- Define Custom Numbers Here
D9: 0 | E9: 0.8 | F9: 0.8 | G9: 0.8 | H9: 0.8 | I9: 0.8 | J9: <-- Define Custom Numbers Here
D10: 0 | E10: 0.8 | F10: 0.8 | G10: 0.8 | H10: 0.8 | I10: 0.8 | J10: <-- Define Custom Numbers Here
D11: 0 | E11: 0.8 | F11: 0.8 | G11: 0.8 | H11: 0.8 | I11: 0.8 | J11: <-- Define Custom Numbers Here
D12: 0 | E12: 0.8 | F12: 0.8 | G12: 0.8 | H12: 0.8 | I12: 0.8 | J12: <-- Define Custom Numbers Here

Sheet Chassis
A1: Chassis | D1: Total | E1: Fans | F1: HS Fan | G1: HSBP | H1: PS Eff% | L1: Product Name | M1: Total 12 DC Current (Amps) | Q1: Total DC Ouput (Watts)
A2: Selection | B2: 12V | C2: 12VSB | D2: Watts | E2: 12V | F2: (Y/N) | G2: VR Eff% | H2: 220VAC | I2: 115VAC | J2: -48DCV | K2: -60DCV | M2: 220VAC | N2: 115VAC | O2: -48DCV | P2: -60DCV | Q2: 220VAC | R2: 115VAC | S2: -48DCV | T2: -60DCV
A3: (Select Chassis) | G3: 1 | H3: 1 | I3: 1 | J3: 1 | K3: 1 | L3: (Select a Chassis)
A4: R1XXX (1U 750W DC PSU) | B4: =INDEX(M4:P4,Summary!$B$19) -> 0 | C4: 2.1 | D4: =INDEX(Q4:T4,Summary!$B$19) -> 0 | E4: =6*2.1 -> 12.6 | F4: N | G4: 0.9 | J4: 0.9 | K4: 0.9 | L4: R1XXX | O4: 62 | P4: 62 | S4: 750 | T4: 750
A5: R1XXX (1U 1100W AC PSU) | B5: =INDEX(M5:P5,Summary!$B$19) -> 92 | C5: 2.1 | D5: =INDEX(Q5:T5,Summary!$B$19) -> 1100 | E5: =6*2.1 -> 12.6 | F5: N | G5: 0.9 | H5: 0.94 | I5: 0.92 | L5: R1XXX | M5: 92 | N5: 75 | Q5: 1100 | R5: 900
A6: R1XXX (1U 1300W AC PSU) | B6: =INDEX(M6:P6,Summary!$B$19) -> 108 | C6: 2.1 | D6: =INDEX(Q6:T6,Summary!$B$19) -> 1300 | E6: =6*2.1 -> 12.6 | F6: N | G6: 0.9 | H6: 0.94 | I6: 0.92 | L6: R1XXX | M6: 108 | N6: 62 | Q6: 1300 | R6: 750
A7: R2XXX (2U 750W DC PSU) | B7: =INDEX(M7:P7,Summary!$B$19) -> 0 | C7: 2.1 | D7: =INDEX(Q7:T7,Summary!$B$19) -> 0 | E7: =6*1.6 -> 9.6 | F7: Y | G7: 0.9 | J7: 0.9 | K7: 0.9 | L7: R2XXX | O7: 62 | P7: 62 | S7: 750 | T7: 750
A8: R2XXX (2U 1100W AC PSU) | B8: =INDEX(M8:P8,Summary!$B$19) -> 92 | C8: 2.1 | D8: =INDEX(Q8:T8,Summary!$B$19) -> 1100 | E8: =6*1.6 -> 9.6 | F8: Y | G8: 0.9 | H8: 0.94 | I8: 0.92 | L8: R2XXX | M8: 92 | N8: 75 | Q8: 1100 | R8: 900
A9: R2XXX (2U 1300W AC PSU) | B9: =INDEX(M9:P9,Summary!$B$19) -> 108 | C9: 2.1 | D9: =INDEX(Q9:T9,Summary!$B$19) -> 1300 | E9: 9.6 | F9: Y | G9: 0.9 | H9: 0.96 | I9: 0.92 | L9: R2XXX | M9: 108 | N9: 62 | Q9: 1300 | R9: 750
A10: User Definable | B10: =INDEX(M10:P10,Summary!$B$19) -> 0 | D10: =INDEX(Q10:T10,Summary!$B$19) -> 0 | F10: N | G10: 0.8 | H10: 0.8 | I10: 0.8 | J10: 0.8 | K10: 0.8 | U10: <-- Define Custom Numbers Here
A11: User Definable | B11: =INDEX(M11:P11,Summary!$B$19) -> 0 | D11: =INDEX(Q11:T11,Summary!$B$19) -> 0 | F11: N | G11: 0.8 | H11: 0.8 | I11: 0.8 | J11: 0.8 | K11: 0.8 | U11: <-- Define Custom Numbers Here
A12: User Definable | B12: =INDEX(M12:P12,Summary!$B$19) -> 0 | D12: =INDEX(Q12:T12,Summary!$B$19) -> 0 | F12: N | G12: 0.8 | H12: 0.8 | I12: 0.8 | J12: 0.8 | K12: 0.8 | U12: <-- Define Custom Numbers Here
A13: User Definable | B13: =INDEX(M13:P13,Summary!$B$19) -> 0 | D13: =INDEX(Q13:T13,Summary!$B$19) -> 0 | F13: N | G13: 0.8 | H13: 0.8 | I13: 0.8 | J13: 0.8 | K13: 0.8 | U13: <-- Define Custom Numbers Here
A14: User Definable | B14: =INDEX(M14:P14,Summary!$B$19) -> 0 | D14: =INDEX(Q14:T14,Summary!$B$19) -> 0 | F14: N | G14: 0.8 | H14: 0.8 | I14: 0.8 | J14: 0.8 | K14: 0.8 | U14: <-- Define Custom Numbers Here
A18: Note: HS Fan (Y/N) determines if an Active Heatsink (Heatsink with Fan) in Intel® Boxed Processors is used (adds fan power to budget)
A19: Note: PS Eff is estimate @ typ voltage & 35% to 90% loading based on PS measurement data.

Sheet Processors
A1: Processor Types | B1: TDP (W) | C1: HS Fan (A) | D1: Source | F1: VRM#1
A2: (Select Processor) | F2: 5V VRM
A3: Intel® Xeon® Platinum 8280 CPU (205W) | B3: 205
A4: Intel® Xeon® Platinum 8276 CPU (165W) | B4: 165
A5: Intel® Xeon® Platinum 8270 CPU (205W) | B5: 205
A6: Intel® Xeon® Platinum 8268 CPU (205W) | B6: 205
A7: Intel® Xeon® Platinum 8260Y CPU (165W) | B7: 165
A8: Intel® Xeon® Platinum 8260 CPU (165W) | B8: 165
A9: Intel® Xeon® Platinum 8256 CPU (105W) | B9: 105
A10: Intel® Xeon® Platinum 8253 CPU (125W) | B10: 125
A11: Intel® Xeon® Gold 6262V CPU (135W) | B11: 135
A12: Intel® Xeon® Gold 6254 CPU (200W) | B12: 200
A13: Intel® Xeon® Gold 6252N CPU (150W) | B13: 150
A14: Intel® Xeon® Gold 6252 CPU (150W) | B14: 150
A15: Intel® Xeon® Gold 6248 CPU (150W) | B15: 150
A16: Intel® Xeon® Gold 6244 CPU (150W) | B16: 150
A17: Intel® Xeon® Gold 6242 CPU (150W) | B17: 150
A18: Intel® Xeon® Gold 6240Y CPU (150W) | B18: 150
A19: Intel® Xeon® Gold 6240 CPU (150W) | B19: 150
A20: Intel® Xeon® Gold 6238T CPU (125W) | B20: 125
A21: Intel® Xeon® Gold 6238 CPU (140W) | B21: 140
A22: Intel® Xeon® Gold 6234 CPU (140W) | B22: 140
A23: Intel® Xeon® Gold 6230N CPU (125W) | B23: 125
A24: Intel® Xeon® Gold 6230T CPU (125W) | B24: 125
A25: Intel® Xeon® Gold 6230 CPU (125W) | B25: 125
A26: Intel® Xeon® Gold 6226 CPU (125W) | B26: 125
A27: Intel® Xeon® Gold 6222V CPU (115W) | B27: 115
A28: Intel® Xeon® Gold 6212U CPU (165W) | B28: 165
A29: Intel® Xeon® Gold 6210U CPU (150W) | B29: 150
A30: Intel® Xeon® Gold 6209U CPU (125W) | B30: 125
A31: Intel® Xeon® Gold 5222 CPU (105W) | B31: 105
A32: Intel® Xeon® Gold 5220S CPU (105W) | B32: 105
A33: Intel® Xeon® Gold 5220T CPU (105W) | B33: 105
A34: Intel® Xeon® Gold 5220 CPU (125W) | B34: 125
A35: Intel® Xeon® Gold 5218N CPU (105W) | B35: 105
A36: Intel® Xeon® Gold 5218 CPU (125W) | B36: 125
A37: Intel® Xeon® Gold 5217 CPU (125W) | B37: 125
A38: Intel® Xeon® Gold 5215 CPU (85W) | B38: 85
A39: Intel® Xeon® Silver 4216 CPU (100W) | B39: 100
A40: Intel® Xeon® Silver 4215 CPU (85W) | B40: 85
A41: Intel® Xeon® Silver 4214Y CPU (105W) | B41: 105
A42: Intel® Xeon® Silver 4214 CPU (85W) | B42: 85
A43: Intel® Xeon® Silver 4210 CPU (85W) | B43: 85
A44: Intel® Xeon® Silver 4209T CPU (70W) | B44: 70
A45: Intel® Xeon® Silver 4208 CPU (85W) | B45: 85
A46: Intel® Xeon® Bronze 3204 CPU (85W) | B46: 85
A47: Intel® Xeon® Platinum 8180 CPU (205W) | B47: 205 | E47: Update Cpu List per last Snapshot
A48: Intel® Xeon® Platinum 8168 CPU (205W) | B48: 205
A49: Intel® Xeon® Gold 6154 CPU (200W) | B49: 200
A50: Intel® Xeon® Gold 6146 CPU (165W) | B50: 165
A51: Intel® Xeon® Gold 6144 CPU (155W) | B51: 155
A52: Intel® Xeon® Platinum 8176 CPU (165W) | B52: 165
A53: Intel® Xeon® Platinum 8170 CPU (165W) | B53: 165
A54: Intel® Xeon® Gold 6150 CPU (165W) | B54: 165
A55: Intel® Xeon® Platinum 8164 CPU (150W) | B55: 150
A56: Intel® Xeon® Platinum 8160 CPU (150W) | B56: 150
A57: Intel® Xeon® Gold 6148 CPU (150W) | B57: 150
A58: Intel® Xeon® Gold 6142 CPU (150W) | B58: 150
A59: Intel® Xeon® Gold 6136 CPU (150W) | B59: 150
A60: Intel® Xeon® Platinum 8158 CPU (150W) | B60: 150
A61: Intel® Xeon® Gold 6132 CPU (140W) | B61: 140
A62: Intel® Xeon® Gold 6128 CPU (115W) | B62: 115
A63: Intel® Xeon® Gold 6134 CPU (130W) | B63: 130
A64: Intel® Xeon® Gold 5122 CPU (105W) | B64: 105
A65: Intel® Xeon® Platinum 8156 CPU (105W) | B65: 105
A66: Intel® Xeon® Gold 6152 CPU (140W) | B66: 140
A67: Intel® Xeon® Gold 6140 CPU (140W) | B67: 140
A68: Intel® Xeon® Gold 6138 CPU (125W) | B68: 125
A69: Intel® Xeon® Gold 6130 CPU (125W) | B69: 125
A70: Intel® Xeon® Platinum 8153 CPU (125W) | B70: 125
A71: Intel® Xeon® Gold 6126 CPU (125W) | B71: 125
A72: Intel® Xeon® Gold 5120 CPU (105W) | B72: 105
A73: Intel® Xeon® Gold 5118 CPU (105W) | B73: 105
A74: Intel® Xeon® Gold 5115 CPU (85W) | B74: 85
A75: Intel® Xeon® Silver 4116 CPU (85W) | B75: 85
A76: Intel® Xeon® Silver 4114 CPU (85W) | B76: 85
A77: Intel® Xeon® Silver 4110 CPU (85W) | B77: 85
A78: Intel® Xeon® Silver 4108 CPU (85W) | B78: 85
A79: Intel® Xeon® Bronze 3106 CPU (85W) | B79: 85
A80: Intel® Xeon® Bronze 3104 CPU (85W) | B80: 85
A81: Intel® Xeon® Silver 4112 CPU (85W) | B81: 85
A82: Intel® Xeon® Platinum 8160H CPU (150W) | B82: 150
A83: Intel® Xeon® Gold 6130H CPU (125W) | B83: 125
A84: Intel® Xeon® Silver 4106H CPU (85W) | B84: 85
A93: Processor Quantities (used for tool operation)
A94: 1 | B94: 1
A95: 2 | B95: 2
A96: 3 | B96: 3
A97: 4 | B97: 4
A99: Note: HS Fan = Fan 12v current for Active Heatsink which ships with Intel® Boxed Processors

Sheet Memory
B1: Watts of +12V
B3: 1DPC | C3: 1DPC | D3: 1DPC | E3: 1DPC | F3: 1DPC | G3: 1DPC | H3: 1DPC | I3: 1&2DPC | J3: 1&2DPC | K3: 1&2DPC | L3: 1&2DPC | M3: 1&2DPC | N3: 2DPC
B4: # of DIMMS | AC4: Config
A5: Memory | B5: 1 | C5: 2 | D5: 4 | E5: 6 | F5: 8 | G5: 10 | H5: 12 | I5: 14 | J5: 16 | K5: 18 | L5: 20 | M5: 22 | N5: 24 | R5: TDP | W5: CPU1 | X5: CPU2 | Z5: TOTAL
A7: (Select Memory) | R7: 1DPC | S7: 2DPC | T7: 3DPC | W7: 1 | X7: 1 | Z7: =+W7+X7 -> 2 | AC7: 1DPC
A8: 8GB DDR4 RDIMM (4Gb, SRx4) | B8: =$R8*B$5 -> 5.67 | C8: =$R8*C$5 -> 11.34 | D8: 22.68 | E8: 34.02 | F8: 45.36 | G8: 56.7 | H8: 68.04 | I8: =($R8*($H$5-(I$5-$H$5)))+($S8*((I$5-$H$5)*2)) -> 73.7 | J8: =($R8*($H$5-(J$5-$H$5)))+($S8*((J$5-$H$5)*2)) -> 79.36 | K8: 85.02 | L8: 90.68 | M8: 96.34 | N8: 102 | R8: 5.67 | S8: 4.25 | W8: 2 | X8: 2 | Z8: 4 | AC8: 1DPC
A9: 8GB DDR4 RDIMM (8Gb, SRx8) | B9: 3.66 | C9: 7.32 | D9: 14.64 | E9: 21.96 | F9: 29.28 | G9: 36.6 | H9: 43.92 | I9: 47.56 | J9: 51.2 | K9: 54.84 | L9: 58.48 | M9: 62.12 | N9: 65.76 | R9: 3.66 | S9: 2.74 | W9: 3 | X9: 3 | Z9: 6 | AC9: 1DPC
A10: 16GB DDR4 RDIMM (8Gb, SRx4) | B10: 5.35 | C10: 10.7 | D10: 21.4 | E10: 32.1 | F10: 42.8 | G10: 53.5 | H10: 64.2 | I10: 67.74 | J10: 71.28 | K10: 74.82 | L10: 78.36 | M10: 81.9 | N10: 85.44 | R10: 5.35 | S10: 3.56 | W10: 4 | X10: 4 | Z10: 8 | AC10: 1DPC
A11: 16GB DDR4 RDIMM (4Gb, DRx4) | B11: 6.18 | C11: 12.36 | D11: 24.72 | E11: 37.08 | F11: 49.44 | G11: 61.8 | H11: 74.16 | I11: 80.32 | J11: 86.48 | K11: 92.64 | L11: 98.8 | M11: 104.96 | N11: 111.12 | R11: 6.18 | S11: 4.63 | W11: 5 | X11: 5 | Z11: 10 | AC11: 1DPC
A12: 16GB DDR4 RDIMM (8Gb, DRx8) | B12: 3.9 | C12: 7.8 | D12: 15.6 | E12: 23.4 | F12: 31.2 | G12: 39 | H12: 46.8 | I12: 50.68 | J12: 54.56 | K12: 58.44 | L12: 62.32 | M12: 66.2 | N12: 70.08 | R12: 3.9 | S12: 2.92 | W12: 6 | X12: 6 | Z12: 12 | AC12: 1DPC
A13: 32GB DDR4 RDIMM (8Gb, DRx4) | B13: 6.49 | C13: 12.98 | D13: 25.96 | E13: 38.94 | F13: 51.92 | G13: 64.9 | H13: 77.88 | I13: 86.54 | J13: 95.2 | K13: 103.86 | L13: 112.52 | M13: 121.18 | N13: 129.84 | R13: 6.49 | S13: 5.41 | W13: 7 | X13: 7 | Z13: =+$P$58+W13+X13 -> 14 | AC13: 10 in 1DPC + 2 in 2DPC
A14: 32GB DDR4 RDIMM (16Gb, SRx4) | B14: 6.07 | C14: 12.14 | D14: 24.28 | E14: 36.42 | F14: 48.56 | G14: 60.7 | H14: 72.84 | I14: 76.78 | J14: 80.72 | K14: 84.66 | L14: 88.6 | M14: 92.54 | N14: 96.48 | R14: 6.07 | S14: 4.02 | W14: 8 | X14: 8 | Z14: 16 | AC14: 8 in 1DPC + 4 in 2DPC
A15: 64GB DDR4 LRDIMM (8Gb, QRx4) | B15: 10.52 | C15: 21.04 | D15: 42.08 | E15: 63.12 | F15: 84.16 | G15: 105.2 | H15: 126.24 | I15: 136.44 | J15: 146.64 | K15: 156.84 | L15: 167.04 | M15: 177.24 | N15: 187.44 | R15: 10.52 | S15: 7.81 | W15: 9 | X15: 9 | Z15: 18 | AC15: 6 in 1DPC + 6 in 2DPC
A16: 128GB DDR4 LRDIMM (8Gb, 8Rx4) | B16: 12.28 | C16: 24.56 | D16: 49.12 | E16: 73.68 | F16: 98.24 | G16: 122.8 | H16: 147.36 | I16: N/A | J16: N/A | K16: N/A | L16: N/A | M16: N/A | N16: N/A | R16: 12.28 | S16: 9.21 | W16: 10 | X16: 10 | Z16: 20 | AC16: 4 in 1DPC + 8 in 2DPC
A17: User Definable | O17: <-- Define Custom Numbers Here | W17: 11 | X17: 11 | Z17: 22 | AC17: 2 in 1DPC + 20 in 2DPC
A18: User Definable | O18: <-- Define Custom Numbers Here | W18: 12 | X18: 12 | Z18: 24 | AC18: 24 in 2DPC
A19: User Definable | O19: <-- Define Custom Numbers Here
A20: User Definable | O20: <-- Define Custom Numbers Here
A21: User Definable | O21: <-- Define Custom Numbers Here
A22: User Definable | O22: <-- Define Custom Numbers Here
A26: Note:
A27: DIMM power will vary depending on the # of DIMMs & the actual stress/bandwidth used.
A28: DIMMs are assumed to be evenly distributed across available channels on a 4 channel motherboard.
A29: Numbers assume fan control set to performance mode
A32: 0
A33: 1
A34: 2
A35: 4
A36: 6
A37: 8
A38: 10
A39: 12
A40: 14
A41: 16
A42: 18
A43: 20
A44: 22
A45: 24

Sheet DCPMM
B1: Watts of +12V
B3: 1DPC | C3: 1DPC | D3: 1DPC | E3: 1DPC | F3: 1DPC | G3: 1DPC | H3: 1DPC | I3: 1&2DPC | J3: 1&2DPC | K3: 1&2DPC | L3: 1&2DPC | M3: 1&2DPC | N3: 2DPC
B4: # of DIMMS | AC4: Config
A5: Memory | B5: 1 | C5: 2 | D5: 4 | E5: 6 | F5: 8 | G5: 10 | H5: 12 | I5: 14 | J5: 16 | K5: 18 | L5: 20 | M5: 22 | N5: 24 | R5: TDP | W5: CPU1 | X5: CPU2 | Z5: TOTAL
A7: (Select DCPMM) | R7: 1DPC | S7: 2DPC | T7: 3DPC | W7: 1 | X7: 1 | Z7: =+W7+X7 -> 2 | AC7: 1DPC
A8: Intel® Optane™ DC Persistent Memory (128 GB) | R8: 5.67 | S8: 4.25 | W8: 2 | X8: 2 | Z8: 4 | AC8: 1DPC
A9: Intel® Optane™ DC Persistent Memory (256 GB) | R9: 3.66 | S9: 2.74 | W9: 3 | X9: 3 | Z9: 6 | AC9: 1DPC
A10: Intel® Optane™ DC Persistent Memory (512 GB) | R10: 5.35 | S10: 3.56 | W10: 4 | X10: 4 | Z10: 8 | AC10: 1DPC
A11: User Definable | R11: 6.18 | S11: 4.63 | W11: 5 | X11: 5 | Z11: 10 | AC11: 1DPC
A12: User Definable | R12: 3.9 | S12: 2.92 | W12: 6 | X12: 6 | Z12: 12 | AC12: 1DPC
A13: User Definable | R13: 6.49 | S13: 5.41 | W13: 7 | X13: 7 | Z13: =+$P$58+W13+X13 -> 14 | AC13: 10 in 1DPC + 2 in 2DPC
A14: User Definable | R14: 6.07 | S14: 4.02 | W14: 8 | X14: 8 | Z14: 16 | AC14: 8 in 1DPC + 4 in 2DPC
A15: User Definable | R15: 10.52 | S15: 7.81 | W15: 9 | X15: 9 | Z15: 18 | AC15: 6 in 1DPC + 6 in 2DPC
A16: User Definable | R16: 12.28 | S16: 9.21 | W16: 10 | X16: 10 | Z16: 20 | AC16: 4 in 1DPC + 8 in 2DPC
A17: User Definable | O17: <-- Define Custom Numbers Here | W17: 11 | X17: 11 | Z17: 22 | AC17: 2 in 1DPC + 20 in 2DPC
A18: User Definable | O18: <-- Define Custom Numbers Here | W18: 12 | X18: 12 | Z18: 24 | AC18: 24 in 2DPC
A19: User Definable | O19: <-- Define Custom Numbers Here
A20: User Definable | O20: <-- Define Custom Numbers Here
A21: User Definable | O21: <-- Define Custom Numbers Here
A22: User Definable | O22: <-- Define Custom Numbers Here
A26: Note:
A27: DIMM power will vary depending on the # of DIMMs & the actual stress/bandwidth used.
A28: DIMMs are assumed to be evenly distributed across available channels on a 4 channel motherboard.
A29: Numbers assume fan control set to performance mode
A32: 0
A33: 1
A34: 2
A35: 4
A36: 6
A37: 8
A38: 10
A39: 12
A40: 14
A41: 16
A42: 18
A43: 20
A44: 22
A45: 24

Sheet PCI
B1: Amps of +3.3V | C1: Amps of +5V | D1: Amps of +12V | E1: Amps of 3.3V Stby | F1: Amps of 5V Stby | G1: Watts
A2: PCI Add in Cards
A3: Slot Empty
A4: PCIe (3V) Typical | B4: 3 | G4: =B4*3.3+C4*5+D4*12+E4*3.3+F4*5 -> 9.9
A5: PCIe (3.3V / 12V) Typical | B5: 2 | D5: 0.25 | G5: 9.6
A6: PCIe (3.3V / 12V) High | B6: 2 | D6: 0.7 | G6: 15
A7: RS3DC080 | B7: 0.793 | D7: 1.09 | E7: 0.001 | G7: 15.7002
A8: RES3FV288 | D8: 1.04 | G8: 12.48
A9: AXXP3RTX16040 | G9: 12.2
A10: AXXP3SWX08040 | D10: 1.542 | G10: 18.5
A11: AXXP3SWX08080 | D11: 2.075 | G11: 24.9
A12: Intel® Xeon Phi™ 7120P | B12: 1.3 | D12: 24.64 | G12: 299.97
A13: Intel® Xeon Phi™ 7120A | B13: 1.3 | D13: 24.64 | G13: =B13*3.3+C13*5+D13*12+E13*3.3+F13*5 -> 299.97 | H13: <-- Define Custom Card Here
A14: AWF1PFABKITP | B14: 0.11 | G14: 0.363 | H14: <-- Define Custom Card Here
A15: User Definable | G15: 0 | H15: <-- Define Custom Card Here
A16: User Definable | G16: 0 | H16: <-- Define Custom Card Here
A17: User Definable | G17: 0 | H17: <-- Define Custom Card Here
A18: User Definable | G18: 0 | H18: <-- Define Custom Card Here
A19: User Definable | G19: 0 | H19: <-- Define Custom Card Here
A20: User Definable | G20: 0 | H20: <-- Define Custom Card Here
A21: User Definable | G21: 0 | H21: <-- Define Custom Card Here
A23: SAS ROC/IOC
A24: Slot Empty
A25: RMS3JC080 | D25: 1.59 | E25: 0.001 | G25: =B25*3.3+C25*5+D25*12+E25*3.3+F25*5 -> 19.0833
A26: RMS3HC080 | B26: 0.793 | D26: 0.915 | E26: 0.001 | G26: 13.6002
A27: RMS3CC080 | B27: 0.793 | D27: 1.09 | E27: 0.001 | G27: =B27*3.3+C27*5+D27*12+E27*3.3+F27*5 -> 15.7002
A28: RMS3VC160 | D28: 2 | E28: 0.01 | G28: =B28*3.3+C28*5+D28*12+E28*3.3+F28*5 -> 24.033
A29: RMS3AC160 | D29: 2 | E29: 0.01 | G29: 24.033
A30: RMSP3JD160J | B30: 0.39 | D30: 0.8183 | E30: 0.009 | G30: 11.1363
A31: RMSP3HD080E | B31: 0.403 | D31: 0.8183 | E31: 0.009 | G31: 11.1792
A32: RMSP3AD160 | B32: 0.403 | D32: 0.8183 | E32: 0.009 | G32: 11.1792
A33: User Definable | G33: =B33*3.3+C33*5+D33*12+E33*3.3+F33*5 -> 0 | H33: <-- Define Custom Card Here
A34: User Definable | G34: 0 | H34: <-- Define Custom Card Here
A36: Backup Battery
A37: Slot Empty
A38: RMFBU2 | D38: 0.5 | E38: 0.003 | G38: =B38*3.3+C38*5+D38*12+E38*3.3+F38*5 -> 6.0099
A39: RMFBU3 | D39: 0.23 | E39: 0.003 | G39: 2.7699
A40: RMFBU5 | D40: 0.23 | E40: 0.003 | G40: 2.7699
A41: User Definable | G41: 0 | H41: <-- Define Custom Card Here
A42: User Definable | G42: 0 | H42: <-- Define Custom Card Here
A44: IO Module
A45: Slot Empty
A46: OCP X527-DA2 | D46: 0.3 | G46: =B46*3.3+C46*5+D46*12+E46*3.3+F46*5 -> 3.6
A47: OCP X527-DA4 | D47: 0.69 | G47: 8.28
A48: OCTX557-T2 | D48: 0.83 | G48: 9.96
A49: OCP I357-T4 | D49: 0.331 | G49: 3.972
A50: AWF1PFABKITM | B50: 0.11 | G50: 0.363
A51: User Definable | G51: 0 | H51: <-- Define Custom Card Here
A52: User Definable | G52: 0 | H52: <-- Define Custom Card Here
A53: User Definable | G53: 0 | H53: <-- Define Custom Card Here
A55: M.2 SSD
A56: Slot Empty
A57: Generic SATA M.2 | B57: 0.75 | E57: 0.08 | G57: =B57*3.3+C57*5+D57*12+E57*3.3+F57*5 -> 2.739
A58: Generic PCIe M.2 | B58: 0.75 | E58: 0.15 | G58: 2.97
A59: User Definable | G59: 0 | H59: <-- Define Custom Card Here

Sheet HardDrive
A1: Hard Drives | B1: Amps of +3.3V | C1: Amps of +5V | D1: Amps of +12V | E1: Watts
A2: Empty
A3: 3.5" SATA Typical Power (12W) | C3: 0.44 | D3: 0.78 | E3: =B3*3.3+C3*5+D3*12 -> 11.56
A4: 3.5" SAS Typical Power (12W) | C4: 0.6 | D4: 0.76 | E4: =B4*3.3+C4*5+D4*12 -> 12.12
A5: 2.5" SATA Typical Power (5W) | C5: 1 | D5: 0 | E5: 5
A6: 2.5" SAS Typical Power (9W) | C6: 0.81 | D6: 0.41 | E6: 8.97
A7: Intel® SSD DC Typical Power (3.5W) | C7: 0.22 | D7: 0.2 | E7: =B7*3.3+C7*5+D7*12 -> 3.5
A8: Intel® SSD DC Typical Power (7W) | C8: 0.9 | D8: 0.2 | E8: 6.9
A9: 3.5" SAS Power (9.5W) | C9: 0.44 | D9: 0.61 | E9: =B9*3.3+C9*5+D9*12 -> 9.52
A10: 3.5" SATA Power (10.7W) | C10: 0.32 | D10: 0.76 | E10: 10.72
A11: 2.5" SAS Power(7.8W) | C11: 0.44 | D11: 0.47 | E11: 7.84
A12: 2.5" SAS Power(14W) | C12: 0 | D12: =14/12 -> 1.166666667 | E12: 14
A13: User Definable | E13: 0 | G13: <-- Define Custom Device Here
A14: User Definable | E14: 0 | G14: <-- Define Custom Device Here
A15: User Definable | E15: 0 | G15: <-- Define Custom Device Here
A16: User Definable | E16: 0 | G16: <-- Define Custom Device Here
A17: User Definable | E17: 0 | G17: <-- Define Custom Device Here
A18: User Definable | E18: 0 | G18: <-- Define Custom Device Here
A20: HSBP | B20: Amps of +3.3V | C20: Amps of +5V | D20: Amps of +12V | E20: Watts | F20: # of HDD
A21: Empty
A22: 1U 4x3.5" HSBP 12G | D22: 0.17 | E22: =B22*3.3+C22*5+D22*12 -> 2.04 | F22: 4
A23: 1U Combo 8x2.5" HSBP | D23: 0.24 | E23: 2.88 | F23: 8
A24: 2U Combo 8x2.5" HSBP | D24: 0.135 | E24: =B24*3.3+C24*5+D24*12 -> 1.62 | F24: 8
A25: 2U 8x2.5" HSBP Dual Channel 12G | D25: 0.12 | E25: =B25*3.3+C25*5+D25*12 -> 1.44 | F25: 8
A26: 2U 8x3.5" HSBP 12G | D26: 0.25 | E26: 3 | F26: 8
A27: 2U 12x3.5" HSBP 12G + 2NVMe | D27: 0.32 | E27: 3.84 | F27: 12
A28: User Definable | E28: 0 | G28: <-- Define Custom Device Here
A29: User Definable | E29: 0 | G29: <-- Define Custom Device Here
A30: User Definable | E30: 0 | G30: <-- Define Custom Device Here
A31: User Definable | E31: 0 | G31: <-- Define Custom Device Here
A32: User Definable | E32: 0 | G32: <-- Define Custom Device Here
A33: User Definable | E33: 0 | G33: <-- Define Custom Device Here
A34: User Definable | E34: 0 | G34: <-- Define Custom Device Here
A36: Rear HSBP | B36: Amps of +3.3V | C36: Amps of +5V | D36: Amps of +12V | E36: Watts | F36: # of HDD
A37: Empty
A38: 2U 2x2.5" Rear HSBP | B38: 0.12 | E38: =B38*3.3+C38*5+D38*12 -> 0.396 | F38: 2
A39: User Definable | E39: 0 | G39: <-- Define Custom Device Here

Sheet Peripherals
A1: Misc Peripherals | B1: Amps of +3.3V | C1: Amps of +5V | D1: Amps of +12V | E1: Amps of 3VSB | F1: Watts
A2: Slim-Line Devices
A3: Empty
A4: User Definable | F4: =B4*3.3+C4*5+D4*12++E4*3.3 -> 0 | G4: <-- Define Custom Peripherals Here
A5: User Definable | F5: 0 | G5: <-- Define Custom Peripherals Here
A6: User Definable | F6: 0 | G6: <-- Define Custom Peripherals Here
A7: User Definable | F7: 0 | G7: <-- Define Custom Peripherals Here
A9: SSD Drives
A10: Empty
A11: User Definable | F11: =B11*3.3+C11*5+D11*12++E11*3.3 -> 0 | G11: <-- Define Custom Peripherals Here
A12: User Definable | F12: 0 | G12: <-- Define Custom Peripherals Here
A13: User Definable | F13: 0 | G13: <-- Define Custom Peripherals Here
A14: User Definable | F14: 0 | G14: <-- Define Custom Peripherals Here
A16: Midplane SAS Expanders
A17: Empty
A18: RES3TV360 | D18: 1.04 | F18: =B18*3.3+C18*5+D18*12++E18*3.3 -> 12.48
A19: User Definable | F19: 0 | G19: <-- Define Custom Peripherals Here
A20: User Definable | F20: 0 | G20: <-- Define Custom Peripherals Here
A21: User Definable | F21: 0 | G21: <-- Define Custom Peripherals Here
A22: User Definable | F22: 0 | G22: <-- Define Custom Peripherals Here

Sheet Revision
A1: =LARGE(A4:A27,1) -> 2018-09-12 | B1: =MAX(B4:B27) -> 2 | D1: <=== Linked to Summary Tab.
A3: Date | B3: Rev | C3: Notes | D3: Init
A4: 2016-04-16 | B4: 0.1 | C4: Initial Draft - working copy | D4: JZ
A5: 2016-11-15 | B5: 0.5 | C5: Beta release for review | D5: JZ
A6: 2017-04-27 | B6: 0.52 | C6: Configuration matrix updated | D6: ODR
A7: 2017-06-08 | B7: 0.55 | C7: System tabs updated | D7: HS
A8: 2017-06-12 | B8: 0.7 | C8: Thermal tabs "Normal Config" and "Fan Fail Config" updated | D8: HS
A9: 2017-06-15 | B9: 0.71 | C9: Fixed input voltaje scroll down menu | D9: HS
A10: 2017-07-14 | B10: 1 | C10: Fixed format in Thermal tabs - Added new CPU's | D10: HS
A11: 2017-08-10 | B11: 1.1 | C11: Set missing default values and hide tabs | D11: MB
A12: 2018-09-12 | B12: 2 | C12: Include FTP features, update with Q2 APList, fix 2U fan quantity in Chassis tab | D12: MB
